Cogmind - Beta 16.1 @@@ ROGUE MODE // 2026.01.18 @ 18:49:05 Player: Infomantis Result: Escaped! Performance ------------- Evolutions (9) 4500 Regions Visited (31) 6200 Robots Destroyed (530) 2650 Value Destroyed (28346) 28346 Prototype IDs (61) 1220 Alien Tech Used (12) 2400 Bonus (24989) 24989 TOTAL SCORE: 70305 Bonus ------- High Alert Combat Kills 9220 Follower Combat Kills 3852 Entered Garrisons 1000 Used RIF Installer 3500 Network Hubs Disabled 200 Aligned with FarCom 300 Built Enhanced Grunts 300 A7 Reached Mainframe 300 Met R17 at Cetus 500 Met R17 at Research 2000 Scanned by Researcher 500 Pursued by Intercept 500 Win 3000 Friendly Fire -183 Cogmind --------- Core Integrity 552/1850 Matter 281/300 Energy 1598/1600 System Corruption 0% +Membrane Temperature Cool (0) +ITN Movement Core (50) +NEM 1 Location To Epsilon Eridani Parts ------- > --- POWER (4) -------- (None) > --- PROPULSION (6) --- (None) > --- UTILITY (11) ----- Superbattery Core Analyzer Graphene Brace (fused) Relay Coupler [Behemoth] (22) Spacefold Activator > --- WEAPON (4) ------- (None) > --- INVENTORY (5) ---- Long-range Sensor Array Long-range Tractor Beam Heavy Proton Cannon Core Stripper Peak State ------------ > --- POWER ------------ Particle Reactor Quantum Reactor Light Quantum Reactor Improved Quantum Reactor > --- PROPULSION ------- Experimental Biometal Heavy Treads Experimental Biometal Heavy Treads Advanced Heavy Siege Treads > --- UTILITY ---------- Experimental Cooling System Experimental Cooling System Huge Storage Unit Advanced Signal Interpreter Advanced Targeting Computer Heavy Regenerative Plating Graphene Brace Relay Coupler [Grunt] Relay Coupler [Hunter] Spacefold Activator > --- WEAPON ----------- Heavy Neutron Cannon Nova Cannon Compact Mass Driver Enhanced Hardcell Cannon > --- INVENTORY -------- Armored Heavy Treads Superbattery High-capacity Matter Pod Long-range Sensor Array Core Analyzer Heavy Regenerative Plating Experimental EM Shield Advanced Force Field Experimental Force Field Relay Coupler [Heavy] Relay Coupler [Behemoth] Long-range Tractor Beam Enhanced Nova Cannon Multirail Enhanced Hardcell Cannon Enhanced Hardcell Cannon Graviton Cannon Gamma Bomb Array Fusion Bomb Launcher Advanced Remote Datajack Field Lobotomy Kit Core Stripper [Rating: 219] Favorites ----------- Power Quantum Reactor Engine Heavy Ion Engine Power Core Micro Fission Core Reactor Quantum Reactor Propulsion Light Treads Treads Light Treads Leg Enhanced Biometal Leg Wheel Compact Wheel Utility Huge Storage Unit Device Improved Cooling System Storage Huge Storage Unit Processor Advanced Targeting Computer Hackware Relay Coupler [NC] Protection Powered Armor Artifact Phase Armor Weapon Enhanced Hardcell Cannon Energy Gun Enhanced Quantum Rifle Energy Cannon Advanced Beam Cannon Ballistic Gun Advanced KE Penetrator Ballistic Cannon Enhanced Hardcell Cannon Launcher Mini Grenade Launcher Special Weapon Improved Remote Datajack Impact Weapon Core Stripper Special Melee Weapon Datajack Build | -11 -10 -10 -9 -9 -9 -8 -8 -8 -7 -7 -7 -7 -6 -6 -6 -6 -6 -6 -6 -5 -5 -4 -4 -4 -4 -3 -3 -3 -2 -1 -1 ------- Run | Yrd Mat Min Mat Min Exi Min Mat Gar Fac Gar Fac Gar Fac Was Fac Ext Cet Arc Hub Fac Gar Fac Was Fac Gar Res Qua Sec Res Acc Com Slots Evolved 18 | . . . 2 . . . 2 . 2 . . . 2 . . . . . . 2 . 2 . . . 2 . . 2 2 . Power 3 | . . . . . . . . . . . . . . . . . . . . . . 1 . . . . . . 1 1 . Propulsion 4 | . . . 1 . . . . . . . . . 2 . . . . . . . . 1 . . . . . . . . . Utility 9 | . . . 1 . . . 1 . 2 . . . . . . . . . . 2 . . . . . 2 . . 1 . . Weapon 2 | . . . . . . . 1 . . . . . . . . . . . . . . . . . . . . . . 1 . Parts Attached 320 | 7 5 2 25 . 2 2 4 20 3 17 13 12 11 6 10 14 8 6 22 3 20 4 . 12 17 12 18 20 2 15 8 Power 43 | 1 1 1 3 . 1 . 1 2 . 2 . 2 1 . 1 1 1 . 3 . 3 1 . 2 2 1 2 3 1 4 3 Engine 12 | 1 1 . 3 . 1 . 1 2 . 1 . 1 1 . . . . . . . . . . . . . . . . . . Core 5 | . . 1 . . . . . . . 1 . . . . 1 1 . . 1 . . . . . . . . . . . . Reactor 26 | . . . . . . . . . . . . 1 . . . . 1 . 2 . 3 1 . 2 2 1 2 3 1 4 3 Propulsion 60 | 2 1 . 9 . . . . 6 1 4 2 2 4 2 . 2 2 2 2 . 5 . . 1 2 . 3 3 . 3 2 Treads 55 | 2 1 . 9 . . . . 6 . 4 2 2 1 2 . 2 2 2 1 . 5 . . 1 2 . 3 3 . 3 2 Leg 2 | . . . . . . . . . . . . . 1 . . . . . 1 . . . . . . . . . . . . Wheel 3 | . . . . . . . . . 1 . . . 2 . . . . . . . . . . . . . . . . . . Hover . | . . . . . . . . . . . . . . . . . . . . . . . . . . . . . . . . Flight . | . . . . . . . . . . . . . . . . . . . . . . . . . . . . . . . . Utility 143 | 2 1 1 6 . 1 2 2 7 1 10 7 6 3 2 7 8 3 3 11 2 7 2 . 6 10 7 9 11 1 4 1 Device 64 | 1 . 1 1 . . . 2 3 . 4 2 3 1 1 5 6 . 3 9 1 2 2 . 2 4 3 5 3 . . . Storage 9 | 1 1 . 1 . . . . . . . . 1 . . . . 1 . . . . . . . . 1 . 1 . 2 . Processor 11 | . . . 1 . . . . . . 1 1 . . . . 1 . . . . 2 . . 1 . 1 . 1 1 1 . Hackware 26 | . . . . . . . . 4 . 2 2 1 1 . . . . . 2 1 1 . . 3 5 . . 2 . 1 1 Protection 30 | . . . 3 . 1 2 . . 1 3 2 1 1 1 2 1 2 . . . 2 . . . 1 2 2 3 . . . Artifact 3 | . . . . . . . . . . . . . . . . . . . . . . . . . . . 2 1 . . . Weapon 74 | 2 2 . 7 . . . 1 5 1 1 4 2 3 2 2 3 2 1 6 1 5 1 . 3 3 4 4 3 . 4 2 Energy Gun 5 | 1 . . . . . . . . . . . . . . . . 1 . . 1 1 . . . 1 . . . . . . Energy Cannon 25 | . 1 . 5 . . . 1 . . 1 . 1 1 2 . . . . 4 . 1 . . 1 1 . 1 2 . 2 1 Ballistic Gun 4 | 1 . . . . . . . . . . 1 . . . . . 1 . 1 . . . . . . . . . . . . Ballistic Cannon 23 | . 1 . 1 . . . . 2 . . 2 1 2 . 2 2 . . . . 3 . . 1 1 2 2 . . 1 . Launcher 4 | . . . 1 . . . . . . . . . . . . . . . . . . . . . . 1 . . . 1 1 Special Weapon 10 | . . . . . . . . 2 1 . 1 . . . . 1 . . 1 . . 1 . 1 . 1 . 1 . . . Impact Weapon 1 | . . . . . . . . . . . . . . . . . . . . . . . . . . . 1 . . . . Slashing Weapon . | . . . . . . . . . . . . . . . . . . . . . . . . . . . . . . . . Piercing Weapon . | . . . . . . . . . . . . . . . . . . . . . . . . . . . . . . . . Special Melee Weapon 2 | . . . . . . . . 1 . . . . . . . . . 1 . . . . . . . . . . . . . Unidentified Prototypes 50 | . . 1 2 . . . . . . 1 . . 1 . . . 4 . 4 1 2 . . 1 . 4 13 15 . . 1 Corrupted Parts 2 | . . . . . . . . . . . . . . . . . . 2 . . . . . . . . . . . . . System Corruption 4 | . . . . . . . . . . . . . . . . . . 4 . . . . . . . . . . . . . Parts Lost 76 | . . . 4 1 . . . 3 . 8 2 2 3 . . 1 . . 12 . 3 . . 5 4 . . 3 . 6 19 Power 11 | . . . . . . . . . . 1 . 1 1 . . . . . 1 . . . . . 1 . . . . 3 3 Propulsion 20 | . . . . . . . . 2 . 2 . 1 2 . . . . . 3 . 1 . . 1 1 . . 1 . 1 5 Utility 27 | . . . 1 1 . . . . . 3 1 . . . . 1 . . 6 . 2 . . 2 2 . . 1 . 1 6 Weapon 18 | . . . 3 . . . . 1 . 2 1 . . . . . . . 2 . . . . 2 . . . 1 . 1 5 Highest Loss Streak 19 | . . . 2 1 . . . 2 . 3 1 1 1 . . 1 . . 4 . 2 . . 2 4 . . 1 . 2 19 To Critical Strikes . | . . . . . . . . . . . . . . . . . . . . . . . . . . . . . . . . Average Backups 18 | 2 9 10 11 15 14 15 13 14 14 14 14 15 24 24 22 22 20 19 19 21 21 22 23 22 22 23 22 22 21 21 21 Power 1 | . . . 1 3 3 3 3 3 2 . . . 1 1 1 1 1 1 1 2 2 1 1 1 1 2 2 1 . . 1 Propulsion 1 | . 1 2 1 2 2 2 2 1 2 . 1 . . . . . 1 1 1 . 2 3 3 2 1 1 1 . 1 1 . Utility 9 | . 4 5 5 6 5 5 4 5 6 8 8 8 11 13 12 12 10 10 9 11 10 12 13 13 13 14 11 11 11 10 8 Weapon 4 | . 3 2 2 4 4 4 3 2 1 1 2 3 8 7 5 5 4 4 4 4 3 3 3 2 2 4 5 6 7 7 9 Tool/Special . | . . . . . . . . . . . . . . . . . . . . . . . . . . . . . . . . Unused Backups 65 | . 1 2 3 . . . . 3 1 1 5 . 2 1 1 . 4 . . . 9 1 . . 8 5 3 7 . 1 7 Power 10 | . . . 1 . . . . 2 . 1 . . . 1 . . 1 . . . 3 . . . 1 . . . . . . Propulsion 7 | . . . . . . . . . . . . . . . . . 2 . . . 1 . . . . 1 . 3 . . . Utility 26 | . . 1 2 . . . . 1 . . 2 . . . . . 1 . . . 2 1 . . 7 3 3 1 . . 2 Weapon 19 | . 1 1 . . . . . . 1 . 3 . 2 . 1 . . . . . 3 . . . . . . 1 . 1 5 Tool/Special 3 | . . . . . . . . . . . . . . . . . . . . . . . . . . 1 . 2 . . . Average Slot Usage (%) 86 | . 99 100 97 95 97 100 93 95 92 89 97 99 92 75 75 79 81 84 80 62 84 83 84 83 83 78 78 77 81 81 82 Engine 2 | . 14 3 8 11 11 11 7 9 7 6 . . 5 6 . . . . . . . . . . . . . . . . . Core 1 | . . 10 2 . . . . . . . 7 . . . 5 6 4 . 1 . . . . . . . . . . . . Reactor 4 | . . . . . . . . . . . . 5 . . . . 1 6 4 5 5 9 10 10 9 8 8 7 13 13 15 Treads 20 | . 28 28 32 33 33 33 24 25 15 19 23 22 23 18 20 20 20 19 17 11 14 14 15 15 14 14 13 13 13 11 11 Device 15 | . 14 14 9 14 11 11 18 18 15 20 11 20 7 2 13 18 13 13 10 10 22 24 26 20 16 12 17 17 17 13 11 Storage 6 | . 14 14 11 11 11 11 9 9 7 7 7 7 6 6 6 6 6 6 6 5 5 5 5 5 5 4 4 4 4 4 4 Processor 3 | . . . 1 . . . . . . 3 7 7 6 1 . . 6 6 5 . 2 . . 2 5 8 4 4 7 9 9 Hackware 4 | . . . . . . . . . 7 3 10 1 11 7 . . . . 3 4 7 10 10 8 9 9 9 9 8 8 7 Protection 5 | . . . 9 4 9 11 7 6 7 6 6 7 5 5 7 6 7 11 8 5 4 1 . 4 4 3 . 3 4 4 3 Energy Cannon 8 | . 13 14 15 22 22 22 25 19 6 1 7 7 5 11 6 8 13 13 9 3 5 5 5 4 4 3 . 1 4 7 7 Ballistic Cannon 7 | . 12 14 5 . . . . 4 15 13 10 10 13 1 12 10 1 . 1 1 6 9 8 5 5 4 8 10 8 8 7 Peak Build Rating 219 | 8 8 16 21 21 23 23 29 41 48 50 57 68 59 82 85 85 114 112 118 121 137 154 148 156 152 162 197 206 197 219 217 Average Rating 94 | 5 7 9 16 19 20 22 26 31 45 45 53 60 55 76 77 80 98 108 105 112 124 149 147 147 147 153 185 182 195 206 207 On Entrance 87 | . 7 8 11 21 19 22 22 29 41 46 50 57 55 58 82 78 83 110 110 103 121 136 146 148 145 148 162 197 183 196 201 Avg Prop Armor Cover (%) 5 | . . . . . . . . . 8 8 . . 13 5 . . . 4 3 1 3 . . 8 8 . . . . 6 37 Naked Turns . | . . . . . . . . . . . . . . . . . . . . . . . . . . . . . . . . Heaviest Build 232 | 11 20 22 45 45 45 45 46 51 71 71 60 129 127 157 157 131 138 138 170 163 151 162 157 162 163 189 214 209 201 232 232 Greatest Support 260 | 40 40 40 63 63 63 63 63 70 70 70 81 81 90 160 160 170 190 190 180 160 185 230 230 230 235 235 250 255 240 260 235 Greatest Overweight (x) 45 | . . . . . . . 1 1 4 4 . 1 12 6 . . . 45 1 1 . . . . 1 . . 1 . 1 1 Average Overweight (x) . | . . . . . . . . . 3 1 . . 2 1 . . . . . . . . . . . . . . . . . Largest Inventory Capacity 25 | 8 10 10 15 15 15 15 15 15 15 15 15 25 25 25 25 25 25 25 25 25 25 25 25 25 25 25 25 25 25 25 25 Average Capacity 20 | 7 9 10 11 15 15 15 15 15 15 15 15 16 25 25 25 25 25 25 25 25 25 25 25 25 25 25 25 25 25 25 24 Most Carried 25 | 5 10 10 15 15 15 15 15 15 15 15 15 23 25 25 25 25 25 25 25 25 25 25 25 25 25 25 25 25 25 25 25 Average Carried 20 | 3 9 10 11 15 14 14 13 14 14 13 14 15 24 24 24 24 24 24 23 22 24 24 25 23 24 24 24 24 24 24 23 Final Capacity 25 | 8 10 10 15 15 15 15 15 15 15 15 15 25 25 25 25 25 25 25 25 25 25 25 25 25 25 25 25 25 25 25 5 Final Carried 25 | 4 10 10 15 15 15 15 15 15 15 15 15 23 25 24 25 25 25 25 25 23 25 25 25 19 25 25 25 25 25 23 5 Class Distribution -------------------- 22% | Botlord-Tank 17% | Mutant 13% | Scavenger-Tank 9% | Bothacker-Tank 6% | Tank 6% | Bothacker-Gunner 5% | Scavenger-Mutant 4% | Gunner 4% | Bothacker-Mutant 4% | Generator-Tank 3% | Scavenger-Skirmisher Dominant Class ---------------- Mutant | -10/Materials Mutant | -10/Mines Mutant | -9/Materials Mutant | -9/Mines Mutant | -9/Exiles Mutant | -8/Mines Scavenger-Skirmisher | -8/Materials Scavenger-Skirmisher | -8/Garrison Tank | -7/Factory Bothacker-Mutant | -7/Garrison Bothacker-Gunner | -7/Factory Gunner | -7/Garrison Bothacker-Gunner | -6/Factory Bothacker-Tank | -6/Waste Tank | -6/Factory Scavenger-Tank | -6/Extension Scavenger-Tank | -6/Cetus Scavenger-Tank | -6/Archives Scavenger-Tank | -6/Hub_04(d) Scavenger-Mutant | -5/Factory Bothacker-Tank | -5/Garrison Botlord-Tank | -4/Factory Botlord-Tank | -4/Waste Botlord-Tank | -4/Factory Botlord-Tank | -4/Garrison Botlord-Tank | -3/Research Botlord-Tank | -3/Quarantine Botlord-Tank | -3/Section 7 Bothacker-Tank | -2/Research Bothacker-Tank | -1/Access Generator-Tank | -1/Command Resources | -11 -10 -10 -9 -9 -9 -8 -8 -8 -7 -7 -7 -7 -6 -6 -6 -6 -6 -6 -6 -5 -5 -4 -4 -4 -4 -3 -3 -3 -2 -1 -1 ----------- Run | Yrd Mat Min Mat Min Exi Min Mat Gar Fac Gar Fac Gar Fac Was Fac Ext Cet Arc Hub Fac Gar Fac Was Fac Gar Res Qua Sec Res Acc Com Matter Collected 20954 | 275 214 142 544 5 . 50 170 372 49 1186 548 764 949 188 654 901 168 314 935 294 1581 330 237 950 950 354 1287 3936 92 1867 648 Remotely 4182 | . . . . . . . . . . . . . 663 . 188 30 . . . . . . . . . . . 1454 . 1630 217 Salvage Created 22769 | 113 460 293 1211 27 . 659 237 794 47 670 930 1068 517 316 394 806 207 381 2550 406 1598 222 425 1335 993 109 1328 2669 82 1482 440 Parts 956 | 6 27 15 89 . . 26 11 43 4 31 52 52 27 3 26 22 7 27 112 15 48 14 . 44 37 8 47 99 3 49 12 Haulers Intercepted 12 | . 2 . 5 . . . 2 . . . 1 . . . . . . . 1 . . . . 1 . . . . . . . Recyclers Shooed 10 | . 1 . 1 . . . . . . . . . . . . . . . 1 1 . 2 . 2 . . . 1 . 1 . Parts Field Recycled . | . . . . . . . . . . . . . . . . . . . . . . . . . . . . . . . . Retrieved Matter . | . . . . . . . . . . . . . . . . . . . . . . . . . . . . . . . . Parts Self-Destructed . | . . . . . . . . . . . . . . . . . . . . . . . . . . . . . . . . Prevented . | . . . . . . . . . . . . . . . . . . . . . . . . . . . . . . . . Parts Restored . | . . . . . . . . . . . . . . . . . . . . . . . . . . . . . . . . Kills | -11 -10 -10 -9 -9 -9 -8 -8 -8 -7 -7 -7 -7 -6 -6 -6 -6 -6 -6 -6 -5 -5 -4 -4 -4 -4 -3 -3 -3 -2 -1 -1 ------- Run | Yrd Mat Min Mat Min Exi Min Mat Gar Fac Gar Fac Gar Fac Was Fac Ext Cet Arc Hub Fac Gar Fac Was Fac Gar Res Qua Sec Res Acc Com Combat Hostiles Destroyed 419 | . 7 10 23 2 . 9 1 18 1 23 18 25 13 1 11 14 1 1 37 10 39 7 2 20 20 2 20 52 1 23 8 Melee 3 | . . . . . . . . . . . . . . . . . . . . . 2 . . . . . . 1 . . . Guns 24 | . . . . . . . . . . . 1 2 . . . . . 1 16 . 1 . . . 2 . 1 . . . . Cannons 333 | . 7 10 19 2 . 8 1 16 1 23 12 22 13 1 11 11 . . 20 5 28 7 2 15 13 2 16 44 1 16 7 AOE 33 | . . . 4 . . . . . . . 3 . . . . . . . . 5 7 . . 2 3 . 2 1 . 6 . Classes Destroyed 26 | 2 4 1 4 1 . 1 1 2 . 1 1 1 . 1 . 1 . . 1 1 . . . . . . 1 1 . 1 . Worker 18 | . . . 3 . . . . . . . 1 . 1 . . . . . 3 . . . . 3 . . 1 . . 5 1 Builder 25 | . 2 . 2 . . . . . . . 3 . 1 . . 1 . . . . . 2 . 6 . . 1 4 . 3 . Tunneler 8 | 1 . . . . . 4 . . . . . . . . . . . . . . . 1 . 1 . 1 . . . . . Hauler 12 | . 2 . 5 . . . 2 . . . 1 . . . . . . . 1 . . . . 1 . . . . . . . Recycler 17 | 1 1 . 1 . . 1 1 . . . . . . . . . . . 1 1 . . . 2 . . 1 3 . 4 . Mechanic 1 | . . . 1 . . . . . . . . . . . . . . . . . . . . . . . . . . . . Operator 11 | . . . . . . . 1 . . . . . . . . . . 9 . . . . . . . . . 1 . . . Watcher 17 | . 3 . 3 . . . . . . . 1 . . . . 1 1 . 2 . 3 . . . . 1 1 . . 1 . Swarmer 68 | . . 4 7 . . . . 2 . 9 . 2 . . 3 . . . . 5 15 4 . 1 4 1 . 5 . 6 . Cutter 5 | . . . . . . . . . . . . 3 . . . . . . . . . . . . . . . . . . 2 Saboteur 4 | . . . . . . . . . . . . . . . . . . . . 1 2 . . . . . . 1 . . . Grunt 162 | . 7 6 7 . . 8 1 8 . 11 6 8 7 . 4 3 . . 20 3 8 3 . 9 8 . 12 18 . 2 3 Brawler 12 | . . . . . . 1 . . . . 1 2 . . . . . . . 1 2 . . . . . . 2 . 1 2 Duelist 8 | . . . 1 . . . . . . . 3 1 1 . . . . . . . . . . 1 1 . . . . . . Protector 2 | . . . . . . . . . . . 1 . . . . . . . 1 . . . . . . . . . . . . Researcher 1 | . . . . . . . . . . . . . . . . . . . . . . . . . . . . 1 . . . Sentry 54 | . . . 8 . . . . 3 1 2 2 7 . . 1 9 . 1 3 . 4 . . 4 1 1 . 5 1 1 . Specialist 11 | . . . . . . . . 2 . . . . . . . . . . 6 . 1 . . 1 1 . . . . . . Hunter 14 | . . . . . . . . . . 1 1 . 1 . . . . . 3 . . . . . 1 . . 3 . 4 . Programmer 57 | . . . . . . . . 3 . . 4 2 4 . 3 . . . 2 . 5 . . 4 3 . 7 13 . 6 1 Heavy 1 | . . . . . . . . . . . . . . . . . . . 1 . . . . . . . . . . . . Q-Series 2 | . . . . . . . . . . . . . . . . . . . . . . . . . . . . . . 2 . Behemoth 7 | . . . . . . . . . . . . . . . . 2 . . . . 2 . . . 1 . . 2 . . . Compactor 3 | . . . . . . . . . . . . . . 1 . . . . . . . . 2 . . . . . . . . Cetus Guard 1 | . . . . . . . . . . . . . . . . . 1 . . . . . . . . . . . . . . S7 Guard 3 | . . . . . . . . . . . . . . . . . . . . . . . . . . . . 3 . . . Lightning 1 | . . . . . . . . . . . . . . . . . . . 1 . . . . . . . . . . . . Tracker 1 | . . . . . . . . . . . . . . . . . . . . . . . . . . . . . . 1 . Fortress 1 | . . . . . . . . . . . . . . . . . . . . . . . . . . . 1 . . . . Assembled 2 | . . . . 2 . . . . . . . . . . . . . . . . . . . . . . . . . . . Thug 1 | . . . . . . . . . . . . . . . . 1 . . . . . . . . . . . . . . . Savage 2 | . . . . . . . . . . . . . . . . . 2 . . . . . . . . . . . . . . Best Kill Streak 10 | 2 8 2 6 2 . 3 1 2 1 6 5 10 4 1 5 3 1 2 7 6 9 8 1 8 4 1 8 10 1 6 3 Combat Bots Only 10 | . 3 2 4 2 . 3 1 2 1 6 4 10 3 1 5 3 1 1 7 5 8 6 1 6 4 1 6 5 1 4 3 Max Kills in Single Turn 4 | 1 1 1 3 1 . 2 1 1 1 1 3 1 1 1 1 1 1 1 2 4 3 2 1 4 3 1 3 2 1 3 1 Gunslinging . | . . . . . . . . . . . . . . . . . . . . . . . . . . . . . . . . Exploded 4 | . . . 2 . . . . . . . 2 . . . . . . . . 4 3 . . 1 3 . 2 1 . 3 . Melee 1 | . . . . . . . . . . . . . . . . . . . . . 1 . . . . . . 1 . . . Uniques/NPCs Destroyed . | . . . . . . . . . . . . . . . . . . . . . . . . . . . . . . . . Combat | -11 -10 -10 -9 -9 -9 -8 -8 -8 -7 -7 -7 -7 -6 -6 -6 -6 -6 -6 -6 -5 -5 -4 -4 -4 -4 -3 -3 -3 -2 -1 -1 -------- Run | Yrd Mat Min Mat Min Exi Min Mat Gar Fac Gar Fac Gar Fac Was Fac Ext Cet Arc Hub Fac Gar Fac Was Fac Gar Res Qua Sec Res Acc Com Hostile Shots Fired 3772 | . 19 34 78 5 . 50 3 87 27 194 62 285 90 . 57 232 26 . 429 35 180 18 . 197 175 19 125 466 2 406 471 Missed 1146 | . 7 4 19 . . 12 2 22 12 61 17 112 33 . 16 80 9 . 109 8 55 2 . 81 44 8 32 146 . 114 141 Hits 2626 | . 12 30 59 5 . 38 1 65 15 133 45 173 57 . 41 152 17 . 320 27 125 16 . 116 131 11 93 320 2 292 330 Melee 35 | . . . 4 . . . . 2 . . 3 1 . . . . . . 2 1 9 . . . 3 . . 7 . . 3 Projectile 2591 | . 12 30 55 5 . 38 1 63 15 133 42 172 57 . 41 152 17 . 318 26 116 16 . 116 128 11 93 313 2 292 327 AOE 3 | . . . . . . . . . . . . 1 1 . . . . . 1 . . . . . . . . . . . . Critical Strikes 145 | . . 1 3 . . 7 . 8 . 1 3 1 2 . 3 . 1 . 23 1 8 . . 9 5 1 5 27 . 8 28 Actively Blocked 93 | . . . . . . . . . . . . . . . . . . . 7 . 8 . . 4 5 1 5 27 . 8 28 Part Disruptions 19 | . . . . . . . . . . . 1 . . . . . . . 6 . . . . 3 . . 1 4 . 1 3 Damage Taken 40269 | . 133 376 986 71 . 634 18 992 151 1770 983 1461 977 18 516 1073 510 . 5693 547 2584 296 17 2328 1660 262 703 4902 25 4593 5990 Core 4409 | . 12 81 166 . . 136 . 193 . 121 90 125 38 . . 35 33 . 635 32 335 35 . 113 107 . 164 660 . 344 954 Absorbed by Shields 10226 | . . . . . . . . . . 13 30 . . . 20 220 53 . . . 249 . . . 628 141 657 3038 26 2827 2324 Reduced by Siege Mode 140 | . . . . . . . . . . . . . . . . . . . 33 . 107 . . . . . . . . . . Redirected to Core 271 | . . . . . . . . . . . . . . . . . . . . . . . . . . . 137 134 . . . Ignored by Resistances 2014 | . . . . . . . . . . . . . . . 102 15 . . 891 . . . . 79 . . 619 308 . . . Regen/Repaired (Parts) 8031 | . . . 35 . . . . . . . 422 180 178 . . . . . . 1256 . . . 496 . . . 3829 225 759 651 Core Remaining (%) 55 | 100 . 62 . . . 24 . 64 . . . 52 . . . . . . 12 . 63 . . . 77 . . 22 100 . 29 Volleys Fired 1483 | 5 23 22 69 4 . 40 8 77 4 86 54 68 48 14 27 48 14 51 119 18 139 26 16 89 65 19 57 143 3 93 34 Largest 4 | 2 2 2 2 2 . 2 3 3 3 3 3 3 3 2 3 3 3 3 3 3 3 3 3 3 3 3 3 3 3 4 4 Hottest 352 | 60 90 90 136 136 . 136 204 204 148 148 173 173 169 170 165 214 210 210 215 210 236 236 236 236 243 243 236 236 222 342 352 Shots Fired 3207 | 10 45 44 121 8 . 80 24 140 10 144 106 160 126 18 74 140 35 59 279 44 265 50 37 147 131 47 147 343 5 267 101 Gun 299 | 10 . . . . . . . . . . 5 22 . . . . 7 51 110 . 9 . . . 21 14 50 . . . . Cannon 2765 | . 45 44 118 8 . 80 24 133 9 128 91 138 120 9 74 138 28 8 162 39 253 44 31 130 96 30 97 335 5 254 94 Launcher 22 | . . . 3 . . . . . . . . . 1 . . 1 . . 1 3 3 . . . 3 . . . . 4 3 Special 121 | . . . . . . . . 7 1 16 10 . 5 9 . 1 . . 6 2 . 6 6 17 11 3 . 8 . 9 4 Kinetic 1627 | 5 22 22 62 . . . . 19 6 118 52 95 78 . 46 79 7 51 129 13 119 24 20 65 46 14 96 274 2 118 45 Thermal 1426 | 5 23 22 48 8 . 80 24 111 3 10 44 65 42 9 28 59 28 8 143 26 143 20 11 65 71 30 51 61 3 136 49 Explosive 20 | . . . 3 . . . . . . . . . 1 . . 1 . . 1 3 3 . . . 3 . . . . 4 1 Electromagnetic 13 | . . . 8 . . . . 3 . . . . . . . . . . . . . . . . . . . . . . 2 Robot Hit Streak 22 | 5 10 9 10 2 . 7 7 11 3 7 5 8 9 8 5 16 13 7 22 8 17 10 12 12 11 18 9 22 15 16 8 Robot Miss Streak 8 | 2 3 3 2 2 . 3 1 2 2 6 4 8 5 1 3 6 3 2 4 4 6 3 1 2 4 3 4 4 . 6 7 Penetration Max 1 | . . . . . . . . . . . 1 . . . . . 1 1 1 . . . . . . . . 1 . 1 . Secondary Targets . | . . . . . . . . . . . . . . . . . . . . . . . . . . . . . . . . Shots Hit Robots 1901 | 6 25 24 72 4 . 49 14 74 6 64 51 77 71 15 35 86 23 39 182 28 171 24 30 105 80 31 76 234 3 147 55 Core Hits 799 | 3 14 13 40 2 . 22 6 27 3 30 33 36 24 3 17 30 10 19 85 16 58 10 4 42 36 9 34 90 1 59 23 Critical Kills 39 | . 1 . . . . 1 . 2 . . 3 2 . . . 5 . 4 10 . 3 . . 3 2 . . 1 . 1 1 Critical Parts Destroyed 13 | . . . . . . . . . . . 2 . . . . . 1 4 6 . . . . . . . . . . . . Critical Strikes 125 | . 1 . . . . 1 . 6 . 9 5 6 4 . 1 9 3 8 17 2 7 2 . 8 3 1 5 18 1 6 2 Meltdown 22 | . 1 . . . . 1 . 2 . . 2 1 . . . 3 . . 1 . 3 . . 3 2 . . 1 . 1 1 Destroy 33 | . . . . . . . . . . . 3 1 . . . 3 3 8 15 . . . . . . . . . . . . Blast 70 | . . . . . . . . 4 . 9 . 4 4 . 1 3 . . 1 2 4 2 . 5 1 1 5 17 1 5 1 Melee Attacks 28 | . . . . . . . . 8 . . . . . . . . . . . . . . . . . . 1 19 . . . Kinetic 20 | . . . . . . . . . . . . . . . . . . . . . . . . . . . 1 19 . . . Impact . | . . . . . . . . . . . . . . . . . . . . . . . . . . . . . . . . Slashing . | . . . . . . . . . . . . . . . . . . . . . . . . . . . . . . . . Piercing . | . . . . . . . . . . . . . . . . . . . . . . . . . . . . . . . . Sneak Attacks 5 | . . . . . . . . 4 . . . . . . . . . . . . . . . . . . . 1 . . . Combat Hostiles . | . . . . . . . . . . . . . . . . . . . . . . . . . . . . . . . . Follow-up Attacks . | . . . . . . . . . . . . . . . . . . . . . . . . . . . . . . . . Damage Inflicted 71941 | 75 461 450 1769 83 . 1080 287 1511 144 1624 2044 2272 2171 241 1089 2808 862 1169 6077 1163 7550 1182 1185 5332 3461 1210 3921 10947 125 7220 2428 Guns 5087 | 75 . . . . . . . . . . 24 53 . . . . 213 971 2274 . 208 . . . 286 280 703 . . . . Cannons 59973 | . 459 442 1358 83 . 1062 287 1511 127 1624 1268 2219 2134 241 1089 2767 649 198 3435 699 6758 1100 1185 4351 2821 930 2784 10131 125 5872 2264 Explosions 5679 | . . . 400 . . . . . . . 745 . 37 . . . . . 237 427 547 . . 906 354 . 434 214 . 1259 119 Melee 602 | . . . . . . . . . . . . . . . . . . . . . . . . . . . . 602 . . . Ramming 600 | . 2 8 11 . . 18 . . 17 . 7 . . . . 41 . . 131 37 37 82 . 75 . . . . . 89 45 Kinetic 37752 | 32 180 195 607 . . . . 273 86 1544 559 1127 1266 . 799 1511 213 971 2653 255 3395 753 795 2276 1563 540 2784 9363 84 2687 1241 Thermal 28782 | 43 279 247 601 83 . 1062 287 1238 41 80 1478 1145 868 241 290 1256 649 198 3056 444 3571 347 390 2075 1544 670 703 1370 41 3462 1023 Explosive 4538 | . . . 400 . . . . . . . . . 37 . . . . . 237 427 547 . . 906 354 . 434 214 . 982 . Electromagnetic 269 | . . . 150 . . . . . . . . . . . . . . . . . . . . . . . . . . . 119 Impact . | . . . . . . . . . . . . . . . . . . . . . . . . . . . . . . . . Slashing . | . . . . . . . . . . . . . . . . . . . . . . . . . . . . . . . . Piercing . | . . . . . . . . . . . . . . . . . . . . . . . . . . . . . . . . Highest Corruption 17 | . . . . . . . . 1 1 2 11 12 2 17 17 2 . 3 15 . 14 . 6 6 4 . 3 9 . . . Average Corruption 6 | . . . . . . . . 1 1 1 5 11 1 14 14 1 . 1 8 . 10 . 3 4 2 . 2 6 . . . Corruption Purged 30 | . . . . . . . . . . . . . . . 17 2 . 4 . . . . . 5 2 . . . . . . Corruption Blocked . | . . . . . . . . . . . . . . . . . . . . . . . . . . . . . . . . Effects 337 | . . . . . . . . 4 1 17 35 44 4 18 29 . . . 33 . 42 . 4 20 14 . 14 58 . . . Message Errors 82 | . . . . . . . . . 1 6 7 11 1 8 7 . . . 8 . 11 . . 3 3 . 3 13 . . . Matter Fused 82 | . . . . . . . . . . 3 8 11 . 5 10 . . . 7 . 7 . . 5 5 . 4 17 . . . Heat Flow Errors 35 | . . . . . . . . 1 . 1 3 4 . 1 3 . . . 5 . 4 . 2 2 . . 1 8 . . . Energy Discharges 47 | . . . . . . . . 1 . 4 6 8 . 2 3 . . . 5 . 2 . 1 4 3 . 1 7 . . . Parts Rejected 5 | . . . . . . . . . . . . 1 . . . . . . . . 1 . . . . . . 3 . . . Parts Fused 4 | . . . . . . . . . . 1 1 . . . . . . . . . 1 . . 1 . . . . . . . Data Loss (minor) 36 | . . . . . . . . 1 . 2 4 5 2 1 2 . . . 3 . 6 . . 2 3 . 2 3 . . . Data Loss (major) 13 | . . . . . . . . . . . 3 . . 1 . . . . 1 . 1 . . 3 . . 1 3 . . . Misfires 12 | . . . . . . . . 1 . . 1 1 1 . 2 . . . 2 . 2 . 1 . . . . 1 . . . Alerts 5 | . . . . . . . . . . . 2 . . . . . . . 1 . 1 . . . . . . 1 . . . Misdirections 1 | . . . . . . . . . . . . . . . 1 . . . . . . . . . . . . . . . . Weapon Failures 15 | . . . . . . . . . . . . 3 . . 1 . . . 1 . 6 . . . . . 2 2 . . . Overload Shots . | . . . . . . . . . . . . . . . . . . . . . . . . . . . . . . . . Overflow Damage 2182 | . . 15 3 . . 27 . 14 . 8 88 . 100 . 19 1 . . 87 13 261 149 . 242 10 16 122 353 . 524 130 Projectiles 1811 | . . 15 3 . . 27 . 14 . 8 5 . 100 . 19 1 . . 70 . 225 141 . 199 10 16 113 353 . 392 100 Explosions 234 | . . . . . . . . . . . 83 . . . . . . . . . 36 . . 23 . . 9 . . 83 . Melee 137 | . . . . . . . . . . . . . . . . . . . 17 13 . 8 . 20 . . . . . 49 30 Knockbacks 224 | . 1 2 9 . . . . 2 . 11 2 3 14 . 5 4 . . 8 3 16 6 . 17 11 1 22 51 . 29 7 Impact 6 | . . . . . . . . . . . . . . . . . . . 1 1 1 1 . 1 . . . . . 1 . Kinetic 200 | . 1 2 9 . . . . 2 . 10 1 3 14 . 5 4 . . 7 2 14 4 . 13 10 1 17 49 . 26 6 Secondary 18 | . . . . . . . . . . 1 1 . . . . . . . . . 1 1 . 3 1 . 5 2 . 2 1 Self-Inflicted Damage 674 | . . . 184 . . . . . 8 . 187 . . . . . . . . 37 20 . . . 32 . . 136 . 47 23 Shots 14 | . . . 3 . . . . . . . 3 . . . . . . . . 2 1 . . . 1 . . 1 . 1 2 Rammed 43 | . 1 3 4 . . 2 . . 1 . 1 1 . . . 4 . . 11 2 2 4 . 5 . . . . . 1 1 Targets Rammed 46 | . 1 3 6 . . 2 . . 1 . 1 1 . . . 4 . . 11 2 2 5 . 5 . . . . . 1 1 Kicked . | . . . . . . . . . . . . . . . . . . . . . . . . . . . . . . . . Crushed 3 | . . . 2 . . . . . . . . . . . . . . . . . . 1 . . . . . . . . . Highest Temperature 701 | 20 208 216 365 12 . 243 60 144 . 167 197 408 95 315 300 203 30 12 701 170 304 447 187 259 86 339 375 233 58 273 273 Average Temperature 94 | 13 61 92 50 6 . 91 25 67 . 75 44 105 27 133 95 57 8 8 135 76 78 162 79 67 22 90 97 76 33 162 157 Received Heat Transfer 6793 | . 72 132 288 . . 468 9 333 36 465 96 462 237 6 102 309 54 . 1143 177 393 51 . 361 343 33 189 501 4 129 400 Thermoelectric Energy+ 2331 | . . . . . . . . . . . . . . . . . . . . . . . . . . . . . . 1588 743 Effects 33 | . . . 1 . . . . . . . . 4 . 1 1 . . . 16 . . . . . . 2 1 . . 7 . Shutdowns 3 | . . . 1 . . . . . . . . . . . . . . . 1 . . . . . . . 1 . . . . Energy Bleed 7 | . . . . . . . . . . . . 1 . 1 1 . . . 2 . . . . . . . . . . 2 . Interference 13 | . . . . . . . . . . . . 3 . . . . . . 3 . . . . . . 2 . . . 5 . Matter Decay 4 | . . . . . . . . . . . . . . . . . . . 4 . . . . . . . . . . . . Short Circuit 2 | . . . . . . . . . . . . . . . . . . . 2 . . . . . . . . . . . . Damage (minor) 1 | . . . . . . . . . . . . . . . . . . . 1 . . . . . . . . . . . . Damage (major) 1 | . . . . . . . . . . . . . . . . . . . 1 . . . . . . . . . . . . Damage (core) 2 | . . . . . . . . . . . . . . . . . . . 2 . . . . . . . . . . . . Siege Activations 4 | . . . . . . . . . . . . . . . . . . . 1 . 3 . . . . . . . . . . Total Turns 74 | . . . . . . . . . . . . . . . . . . . 35 . 39 . . . . . . . . . . Longest Duration 35 | . . . . . . . . . . . . . . . . . . . 35 . 17 . . . . . . . . . . Martial Activations . | . . . . . . . . . . . . . . . . . . . . . . . . . . . . . . . . Shielding Activations . | . . . . . . . . . . . . . . . . . . . . . . . . . . . . . . . . Robots Disrupted 1 | . . . . . . . . . . . . . . . . . . . . . . . . . . . . . . . 1 Combat Hostiles 1 | . . . . . . . . . . . . . . . . . . . . . . . . . . . . . . . 1 Robots Corrupted 3 | . . . . . . . . . . . . . . . . . . . . . . 1 . 1 . . . . . 1 . Combat Hostiles . | . . . . . . . . . . . . . . . . . . . . . . . . . . . . . . . . Parts Fried 13 | . . . 3 . . . . . . . . . . . . . . . . . . 5 . 3 . . . . . 1 1 Impact Corruptions 10 | . . . . . . . . . . . . . . . . . . . 1 1 . 2 . 2 . . 1 . . 2 1 Robots Melted 23 | . 1 . . . . 1 . 2 . . 2 1 . . . 3 1 . 1 . 3 . . 3 2 . . 1 . 1 1 Combat Hostiles 20 | . . . . . . 1 . 2 . . 2 1 . . . 3 1 . 1 . 1 . . 3 2 . . 1 . 1 1 Parts Melted 70 | . 2 2 2 . . 4 1 7 . 2 6 9 1 . . 6 . . 8 1 8 . . 2 5 . . . . 3 1 Heat Transferred 31511 | 100 592 518 1110 148 . 1924 518 2146 74 148 1426 1556 999 296 333 1517 814 259 4472 746 3270 296 333 1776 1386 666 814 1184 . 1667 423 Parts Sabotaged 8 | . . . . . . . . . . . . . . . . . . . . . 5 . . . 3 . . . . . . Parts Stolen . | . . . . . . . . . . . . . . . . . . . . . . . . . . . . . . . . Parts Stripped 62 | . . . . . . . . . . . . . . . . . . . . . . . . . . . 18 44 . . . Power Chain Reactions 2 | . . . . . . . . . . . . . . . . . . . . . . . . . . . . . . 2 . Alert | -11 -10 -10 -9 -9 -9 -8 -8 -8 -7 -7 -7 -7 -6 -6 -6 -6 -6 -6 -6 -5 -5 -4 -4 -4 -4 -3 -3 -3 -2 -1 -1 ------- Run | Yrd Mat Min Mat Min Exi Min Mat Gar Fac Gar Fac Gar Fac Was Fac Ext Cet Arc Hub Fac Gar Fac Was Fac Gar Res Qua Sec Res Acc Com Maximum Alert Level 5 | . . . 1 . . . . 3 2 3 3 4 3 1 1 1 . 1 5 3 5 4 1 3 4 3 2 5 3 4 3 Low Security (%) 29 | 100 100 100 39 100 . 100 100 18 . . . . . 49 96 81 100 96 19 . . . . 33 . . . . . . . Level 1 12 | . . . 60 . . . . 19 32 15 . . . 50 3 18 . 3 2 . . . 100 28 . . 60 13 . 1 . Level 2 19 | . . . . . . . . 42 67 39 41 11 70 . . . . . 8 . 1 . . 30 15 45 39 14 . 62 7 Level 3 23 | . . . . . . . . 19 . 45 58 39 29 . . . . . 19 100 35 94 . 8 39 55 . 22 100 6 92 Level 4 11 | . . . . . . . . . . . . 48 . . . . . . 19 . 31 5 . . 44 . . 46 . 29 . Level 5 3 | . . . . . . . . . . . . . . . . . . . 32 . 31 . . . . . . 2 . . . High Security . | . . . . . . . . . . . . . . . . . . . . . . . . . . . . . . . . Max Security . | . . . . . . . . . . . . . . . . . . . . . . . . . . . . . . . . Peak Influence 2041 | 5 189 131 385 127 . 61 20 962 504 1019 891 1321 925 316 210 290 190 211 1910 1007 2041 1113 386 754 1494 840 686 1635 937 1227 801 Initial 1071 | . . 49 . 127 . . . 2 504 222 534 609 693 316 74 76 141 54 . 919 665 1071 386 183 523 840 334 365 916 513 763 Average 584 | . 78 35 191 73 . 15 2 475 429 665 671 1050 652 208 84 100 143 111 1068 892 1331 1009 326 363 981 714 443 984 901 761 737 Influence Increases 19643 | 10 300 339 836 . . 250 53 1070 32 997 863 762 675 1 400 964 326 334 2629 328 1406 242 6 1113 1111 111 760 1937 51 1362 375 Destroy 0b10 Robot/C 10020 | . 140 240 460 . . 180 20 560 20 540 340 540 340 . 220 540 160 80 1180 200 780 140 . 480 560 40 400 1100 20 580 160 Destroy 0b10 Robot/NC 640 | 10 40 . 75 . . 25 20 . . . 40 . 20 . . 25 10 45 75 5 25 15 . 70 . 10 20 40 . 65 5 Destroy Leader 1598 | . 40 50 146 . . 30 4 20 10 30 104 30 90 . 50 46 . . 298 20 40 20 . 104 30 12 72 180 10 132 30 Allied During Kill 1243 | . . 19 . . . . . 29 1 16 7 10 19 . . 192 131 125 500 . . . . 56 64 . . 20 . 54 . Successful Hack 379 | . 5 . 14 . . . 9 21 . 28 21 . 30 . 7 49 . . 14 28 14 24 . 28 14 14 . 59 . . . Select Force Hacks 90 | . 60 . . . . . . . . . . . 30 . . . . . . . . . . . . . . . . . . Disable Machine 1650 | . 15 30 60 . . . . . . . 225 15 90 . 30 45 15 75 375 45 45 . . 120 45 . 135 195 15 45 30 Anti-Garrison Action 1250 | . . . . . . . . 350 . 250 . 100 . . . . . . . . 200 . . . 350 . . . . . . Destroy Structure 1933 | . . . 51 . . . . 75 1 73 111 37 56 1 18 37 10 9 127 30 152 28 6 180 48 20 118 238 6 411 90 Partial Spotted 30 | . . . . . . . . 15 . . . . . . . . . . . . . . . . . . . . . 15 . Lose Combat Pursuer 810 | . . . 30 . . 15 . . . 60 15 30 . . 75 30 . . 60 . 150 15 . 75 . 15 15 105 . 60 60 Influence Decreases 19045 | 10 173 466 509 310 17 250 49 112 676 296 1011 312 1092 798 351 867 442 471 752 1254 316 1180 847 627 365 1010 705 957 824 1026 970 Entered New Map 9045 | . . 78 . 200 17 . . 2 458 96 485 262 628 588 33 80 112 83 . 958 286 970 717 79 225 654 261 285 714 344 430 Time Decay 8014 | 10 173 348 479 100 . 250 49 . 198 . 506 . 434 190 318 571 190 388 492 286 . 180 130 398 . 356 434 612 110 502 310 Lost Part 750 | . . . 30 10 . . . 30 . 80 20 20 30 . . 10 . . 120 . 30 . . 50 40 . . 30 . 60 190 Lost Ally 1236 | . . 40 . . . . . 80 20 120 . 30 . 20 . 206 140 . 140 10 . 30 . 100 100 . 10 30 . 120 40 Squads Dispatched 101 | . 3 . 1 . . . . . . . 8 . 5 . 2 1 . . 26 3 . 2 . 10 . 7 7 11 . 9 6 Investigation 16 | . 3 . . . . . . . . . 1 . 1 . . . . . 5 . . . . 2 . 3 1 . . . . Extermination 30 | . . . . . . . . . . . 3 . 3 . 2 . . . 4 1 . . . 3 . . 3 6 . 3 2 Reinforcement 36 | . . . 1 . . . . . . . 2 . 1 . . 1 . . 10 1 . 1 . 4 . 4 3 3 . 2 3 Assault 13 | . . . . . . . . . . . 2 . . . . . . . 3 1 . 1 . 1 . . . 2 . 2 1 Garrison 4 | . . . . . . . . . . . . . . . . . . . 4 . . . . . . . . . . . . Intercept 2 | . . . . . . . . . . . . . . . . . . . . . . . . . . . . . . 2 . Searches Triggered . | . . . . . . . . . . . . . . . . . . . . . . . . . . . . . . . . Construction Impeded 6 | . . . . . . . . . . . 1 . 1 . . 1 . . 2 . . . . . . . . . . 1 . Haulers Reinforced 1 | . . . . . . . . . . . . . . . . . . . 1 . . . . . . . . . . . . Active Scanning Responses . | . . . . . . . . . . . . . . . . . . . . . . . . . . . . . . . . Cargo Convoy Interrupts . | . . . . . . . . . . . . . . . . . . . . . . . . . . . . . . . . Stealth | -11 -10 -10 -9 -9 -9 -8 -8 -8 -7 -7 -7 -7 -6 -6 -6 -6 -6 -6 -6 -5 -5 -4 -4 -4 -4 -3 -3 -3 -2 -1 -1 --------- Run | Yrd Mat Min Mat Min Exi Min Mat Gar Fac Gar Fac Gar Fac Was Fac Ext Cet Arc Hub Fac Gar Fac Was Fac Gar Res Qua Sec Res Acc Com Distress Signals 44 | . . . 3 . . . . . . . . . . . . 2 2 . 4 . 1 2 . 6 . 4 3 6 . 7 4 Communications Jammed . | . . . . . . . . . . . . . . . . . . . . . . . . . . . . . . . . Distress Signals . | . . . . . . . . . . . . . . . . . . . . . . . . . . . . . . . . Times Spotted 880 | . 10 11 33 2 . 10 4 32 1 40 28 27 19 3 16 32 10 31 75 12 41 16 6 60 36 18 25 95 1 84 102 Peak Tracking Total 22 | . 3 3 5 2 . 3 2 5 1 10 5 6 4 1 6 7 5 2 8 5 8 9 2 6 10 6 6 10 1 13 22 Tactical Retreats 38 | . . . 2 . . 1 . . . 2 1 2 . . 3 2 . . 4 . 3 1 . 4 . 1 1 5 . 2 4 Traps | -11 -10 -10 -9 -9 -9 -8 -8 -8 -7 -7 -7 -7 -6 -6 -6 -6 -6 -6 -6 -5 -5 -4 -4 -4 -4 -3 -3 -3 -2 -1 -1 ------- Run | Yrd Mat Min Mat Min Exi Min Mat Gar Fac Gar Fac Gar Fac Was Fac Ext Cet Arc Hub Fac Gar Fac Was Fac Gar Res Qua Sec Res Acc Com Traps Triggered 40 | . 1 . 1 . . . 6 6 1 7 2 3 1 . 1 2 . . . . 4 1 . 1 2 . 1 . . . . Indirectly . | . . . . . . . . . . . . . . . . . . . . . . . . . . . . . . . . Trap Hack Attempts . | . . . . . . . . . . . . . . . . . . . . . . . . . . . . . . . . Triggered . | . . . . . . . . . . . . . . . . . . . . . . . . . . . . . . . . Disarmed . | . . . . . . . . . . . . . . . . . . . . . . . . . . . . . . . . Reprogrammed . | . . . . . . . . . . . . . . . . . . . . . . . . . . . . . . . . Reused . | . . . . . . . . . . . . . . . . . . . . . . . . . . . . . . . . Traps Extracted . | . . . . . . . . . . . . . . . . . . . . . . . . . . . . . . . . Installed . | . . . . . . . . . . . . . . . . . . . . . . . . . . . . . . . . Triggered . | . . . . . . . . . . . . . . . . . . . . . . . . . . . . . . . . Machines | -11 -10 -10 -9 -9 -9 -8 -8 -8 -7 -7 -7 -7 -6 -6 -6 -6 -6 -6 -6 -5 -5 -4 -4 -4 -4 -3 -3 -3 -2 -1 -1 ---------- Run | Yrd Mat Min Mat Min Exi Min Mat Gar Fac Gar Fac Gar Fac Was Fac Ext Cet Arc Hub Fac Gar Fac Was Fac Gar Res Qua Sec Res Acc Com Machines Disabled 130 | . 2 2 4 . . . . 4 . 3 15 2 6 . 2 3 2 5 25 3 6 . . 8 9 . 9 14 1 3 2 Max in Single Turn 8 | . 1 1 2 . . . . 1 . 1 8 1 4 . 1 1 1 1 1 1 1 . . 3 1 . 2 2 1 1 1 Garrison Access 4 | . . . . . . . . . . . . . . . 1 . . . 1 . . . . . . . . . . 2 . Garrison Relay 13 | . . . . . . . . 4 . 2 . 1 . . . . . . . . 2 . . . 4 . . . . . . Network Hub 1 | . . . . . . . . . . . . . . . . . . . 1 . . . . . . . . . . . . Machines Repaired . | . . . . . . . . . . . . . . . . . . . . . . . . . . . . . . . . Machines Dismantled 3 | . . . . . . . . . . . . . . . . 1 1 . 1 . . . . . . . . . . . . Machines Sabotaged . | . . . . . . . . . . . . . . . . . . . . . . . . . . . . . . . . Overloaded Fab Kills . | . . . . . . . . . . . . . . . . . . . . . . . . . . . . . . . . Hacking | -11 -10 -10 -9 -9 -9 -8 -8 -8 -7 -7 -7 -7 -6 -6 -6 -6 -6 -6 -6 -5 -5 -4 -4 -4 -4 -3 -3 -3 -2 -1 -1 --------- Run | Yrd Mat Min Mat Min Exi Min Mat Gar Fac Gar Fac Gar Fac Was Fac Ext Cet Arc Hub Fac Gar Fac Was Fac Gar Res Qua Sec Res Acc Com Machines Accessed 82 | . 3 1 8 . 2 . 3 2 3 3 6 1 3 . 4 8 . . 8 3 2 1 . 5 3 2 1 6 . 2 2 Terminals 56 | . 1 . 7 . . . 2 2 2 3 4 1 1 . 1 8 . . 6 1 2 . . 2 3 2 1 5 . . 2 Fabricators 3 | . . . . . . . . . . . 1 . . . 1 . . . . . . . . 1 . . . . . . . Repair Stations 5 | . . . 1 . . . . . . . . . 1 . . . . . . 1 . 1 . 1 . . . . . . . Recycling Units 3 | . 2 . . . . . . . . . . . . . 1 . . . . . . . . . . . . . . . . Scanalyzers 2 | . . . . . . . . . . . . . 1 . . . . . . . . . . . . . . 1 . . . Garrison Access 10 | . . . . . . . 1 . 1 . 1 . . . 1 . . . 2 1 . . . 1 . . . . . 2 . Total Hacks 180 | . 7 1 17 . 2 . 8 5 5 9 10 3 14 . 7 16 . . 18 6 4 6 . 10 10 3 2 12 . 2 3 Successful 75 | . 3 1 10 . 2 . 4 2 1 2 5 . 6 . 4 8 . . 3 5 1 2 . 4 1 1 . 8 . 2 . Failed 105 | . 4 . 7 . . . 4 3 4 7 5 3 8 . 3 8 . . 15 1 3 4 . 6 9 2 2 4 . . 3 Catastrophic 33 | . 1 . . . . . . 1 1 3 3 1 . . 2 2 . . 6 1 1 1 . 4 2 1 . 2 . . 1 Database Lockouts . | . . . . . . . . . . . . . . . . . . . . . . . . . . . . . . . . Manual 75 | . 7 . 14 . 1 . 7 2 . 2 3 . 2 . . 8 1 . 15 2 2 1 . . 1 2 . 3 . . 2 Terminals 130 | . 4 . 15 . . . 7 5 4 9 6 3 6 . 2 16 . . 16 1 4 . . 3 10 3 2 11 . . 3 Fabricators 6 | . . . . . . . . . . . 3 . . . 2 . . . . . . . . 1 . . . . . . . Repair Stations 23 | . . . 2 . . . . . . . . . 7 . . . . . . 3 . 6 . 5 . . . . . . . Recycling Units 4 | . 3 . . . . . . . . . . . . . 1 . . . . . . . . . . . . . . . . Scanalyzers 2 | . . . . . . . . . . . . . 1 . . . . . . . . . . . . . . 1 . . . Garrison Access 12 | . . . . . . . 1 . 1 . 1 . . . 2 . . . 2 2 . . . 1 . . . . . 2 . Terminal Hacks 27 | . . 1 2 . 2 . 1 2 . 1 1 . 3 . 1 4 . . 1 . 1 . . . 1 . . 6 . . . Record 1 | . . . . . 1 . . . . . . . . . . . . . . . . . . . . . . . . . . Part Schematic 1 | . . . 1 . . . . . . . . . . . . . . . . . . . . . . . . . . . . Open Door 8 | . . 1 . . . . . 1 . . . . . . . 4 . . . . . . . . . . . 2 . . . Branch Access Points 1 | . . . . . . . . . . . . . 1 . . . . . . . . . . . . . . . . . . Emergency Access Points 3 | . . . . . . . . 1 . 1 . . . . . . . . . . 1 . . . . . . . . . . Maintenance Status 3 | . . . 1 . . . . . . . . . 1 . . . . . . . . . . . . . . 1 . . . Reinforcement Status 1 | . . . . . . . . . . . . . . . . . . . . . . . . . . . . 1 . . . Registered Components 2 | . . . . . . . . . . . 1 . . . 1 . . . . . . . . . . . . . . . . Registered Prototypes 1 | . . . . . . . . . . . . . 1 . . . . . . . . . . . . . . . . . . Zone Layout 4 | . . . . . . . 1 . . . . . . . . . . . 1 . . . . . . . . 2 . . . Patrol Navigation 1 | . . . . . . . . . . . . . . . . . . . . . . . . . 1 . . . . . . Proto ID Catalog 1 | . . . . . 1 . . . . . . . . . . . . . . . . . . . . . . . . . . Fabricator Hacks 2 | . . . . . . . . . . . 1 . . . . . . . . . . . . 1 . . . . . . . Network Status 2 | . . . . . . . . . . . 1 . . . . . . . . . . . . 1 . . . . . . . Repair Station Hacks 9 | . . . 2 . . . . . . . . . 2 . . . . . . 2 . 1 . 2 . . . . . . . Scan Component 5 | . . . 1 . . . . . . . . . 1 . . . . . . 1 . 1 . 1 . . . . . . . Repair 4 | . . . 1 . . . . . . . . . 1 . . . . . . 1 . . . 1 . . . . . . . Recycling Unit Hacks 1 | . . . . . . . . . . . . . . . 1 . . . . . . . . . . . . . . . . Retrieve Components 1 | . . . . . . . . . . . . . . . 1 . . . . . . . . . . . . . . . . Scanalyzer 1 | . . . . . . . . . . . . . . . . . . . . . . . . . . . . 1 . . . Insert Component 1 | . . . . . . . . . . . . . . . . . . . . . . . . . . . . 1 . . . Garrison Access Hacks 12 | . . . . . . . 1 . 1 . 1 . . . 2 . . . 2 2 . . . 1 . . . . . 2 . Unlock Access 6 | . . . . . . . 1 . 1 . 1 . . . . . . . 1 1 . . . 1 . . . . . . . Seal Access 4 | . . . . . . . . . . . . . . . 1 . . . 1 . . . . . . . . . . 2 . Coupler Status 2 | . . . . . . . . . . . . . . . 1 . . . . 1 . . . . . . . . . . . Unauthorized Hacks 23 | . 3 . 6 . . . 2 . . 1 2 . 1 . . 4 . . . 1 . 1 . . . 1 . 1 . . . Terminals 17 | . 1 . 6 . . . 2 . . 1 1 . . . . 4 . . . . . . . . . 1 . 1 . . . Botnet 9 | . 1 . 1 . . . 2 . . 1 1 . . . . 1 . . . . . . . . . 1 . 1 . . . Skim 8 | . . . 5 . . . . . . . . . . . . 3 . . . . . . . . . . . . . . . Fabricators 1 | . . . . . . . . . . . 1 . . . . . . . . . . . . . . . . . . . . Haulers 1 | . . . . . . . . . . . 1 . . . . . . . . . . . . . . . . . . . . Repair Stations 2 | . . . . . . . . . . . . . . . . . . . . 1 . 1 . . . . . . . . . Mechanics 2 | . . . . . . . . . . . . . . . . . . . . 1 . 1 . . . . . . . . . Recycling Units 2 | . 2 . . . . . . . . . . . . . . . . . . . . . . . . . . . . . . Tunnel 2 | . 2 . . . . . . . . . . . . . . . . . . . . . . . . . . . . . . Scanalyzers 1 | . . . . . . . . . . . . . 1 . . . . . . . . . . . . . . . . . . Extract 1 | . . . . . . . . . . . . . 1 . . . . . . . . . . . . . . . . . . Garrison Access . | . . . . . . . . . . . . . . . . . . . . . . . . . . . . . . . . Data Cores Recovered 1 | . . . . . . . 1 . . . . . . . . . . . . . . . . . . . . . . . . Used . | . . . . . . . . . . . . . . . . . . . . . . . . . . . . . . . . Hacking Detections 59 | . 2 . 8 . . . 2 1 2 3 5 1 2 . 1 5 . . 6 3 2 1 . 4 3 2 1 3 . . 2 Full Trace Events 9 | . . . . . . . . 1 . 1 . 1 . . . . . . 5 . . . . . 1 . . . . . . Feedback Events 1 | . . . . . . . . . . 1 . . . . . . . . . . . . . . . . . . . . . Corruption 1 | . . . . . . . . . . 1 . . . . . . . . . . . . . . . . . . . . . Feedback Blocked . | . . . . . . . . . . . . . . . . . . . . . . . . . . . . . . . . Robot Schematics Acquired . | . . . . . . . . . . . . . . . . . . . . . . . . . . . . . . . . Robots Built . | . . . . . . . . . . . . . . . . . . . . . . . . . . . . . . . . Authchips . | . . . . . . . . . . . . . . . . . . . . . . . . . . . . . . . . Time . | . . . . . . . . . . . . . . . . . . . . . . . . . . . . . . . . Total Robot Build Rating . | . . . . . . . . . . . . . . . . . . . . . . . . . . . . . . . . Part Schematics Acquired 3 | . . . 1 . . . . . . . . . 2 . . . . . . . . . . . . . . . . . . Parts Built . | . . . . . . . . . . . . . . . . . . . . . . . . . . . . . . . . Authchips . | . . . . . . . . . . . . . . . . . . . . . . . . . . . . . . . . Time . | . . . . . . . . . . . . . . . . . . . . . . . . . . . . . . . . Total Part Build Rating . | . . . . . . . . . . . . . . . . . . . . . . . . . . . . . . . . Part Studies Acquired . | . . . . . . . . . . . . . . . . . . . . . . . . . . . . . . . . Parts Repaired 4 | . . . 1 . . . . . . . . . 1 . . . . . . 1 . . . 1 . . . . . . . Time 170 | . . . 26 . . . . . . . . . 22 . . . . . . 68 . . . 54 . . . . . . . Parts Recycled . | . . . . . . . . . . . . . . . . . . . . . . . . . . . . . . . . Recycled Matter . | . . . . . . . . . . . . . . . . . . . . . . . . . . . . . . . . Retrieved Matter . | . . . . . . . . . . . . . . . . . . . . . . . . . . . . . . . . Retrieved Components 3 | . . . . . . . . . . . . . . . 3 . . . . . . . . . . . . . . . . Parts Scanalyzed . | . . . . . . . . . . . . . . . . . . . . . . . . . . . . . . . . Part Schematics Acquired . | . . . . . . . . . . . . . . . . . . . . . . . . . . . . . . . . Parts Damaged . | . . . . . . . . . . . . . . . . . . . . . . . . . . . . . . . . Bothacking | -11 -10 -10 -9 -9 -9 -8 -8 -8 -7 -7 -7 -7 -6 -6 -6 -6 -6 -6 -6 -5 -5 -4 -4 -4 -4 -3 -3 -3 -2 -1 -1 ------------ Run | Yrd Mat Min Mat Min Exi Min Mat Gar Fac Gar Fac Gar Fac Was Fac Ext Cet Arc Hub Fac Gar Fac Was Fac Gar Res Qua Sec Res Acc Com Used RIF Installer 7 | . . . . . . . . 2 . 1 . 2 . . . . . . . . 1 . . . 1 . . . . . . Coupler Efficiency 1 | . . . . . . . . . . 1 . . . . . . . . . . . . . . . . . . . . . Code Merge 1 | . . . . . . . . . . . . 1 . . . . . . . . . . . . . . . . . . . Command Fork 1 | . . . . . . . . . . . . 1 . . . . . . . . . . . . . . . . . . . Patrol Navigation 1 | . . . . . . . . 1 . . . . . . . . . . . . . . . . . . . . . . . Structural Interface 1 | . . . . . . . . . . . . . . . . . . . . . 1 . . . . . . . . . . Autooverride 1 | . . . . . . . . . . . . . . . . . . . . . . . . . 1 . . . . . . Robots Hacked 82 | . . . . . . . . 5 1 5 5 . 3 6 . . . . 5 1 . 3 5 14 6 2 . 9 . 8 4 Non-combat 17 | . . . . . . . . . 1 . 3 . 2 . . . . . . 1 . 2 . 3 1 2 . 2 . . . Combat 65 | . . . . . . . . 5 . 5 2 . 1 6 . . . . 5 . . 1 5 11 5 . . 7 . 8 4 Autooverrided 6 | . . . . . . . . . . . . . . . . . . . . . . . . . . . . 3 . 2 1 Robot Hacks Applied 83 | . . . . . . . . 6 1 6 6 . 3 7 . . . . 5 1 . 5 5 15 6 2 . 6 . 6 3 parse_system 5 | . . . . . . . . 1 . . . . . 1 . . . . . . . . 1 2 . . . . . . . find_chute 3 | . . . . . . . . . 1 . . . 1 . . . . . . . . 1 . . . . . . . . . drop_inventory 2 | . . . . . . . . . . . 1 . 1 . . . . . . . . . . . . . . . . . . ignore_parts 1 | . . . . . . . . . . . . . . . . . . . . . . . . 1 . . . . . . . disarm_traps 1 | . . . . . . . . . . . . . . . . . . . . . . . . 1 . . . . . . . map_route 3 | . . . . . . . . . . . . . . . . . . . . . . . . . . 2 . 1 . . . disable_scanner 1 | . . . . . . . . . . . . . . . . . . . . . . . . . . . . 1 . . . ignore_targets 10 | . . . . . . . . . . . . . . 6 . . . . . . . . 4 . . . . . . . . find_garrison 2 | . . . . . . . . . . . 1 . . . . . . . . . . . . 1 . . . . . . . broadcast_data 1 | . . . . . . . . . . . . . . . . . . . 1 . . . . . . . . . . . . amplify_resonance 12 | . . . . . . . . 1 . . . . . . . . . . 1 . . 1 . 4 . . . . . 3 2 wipe_record 1 | . . . . . . . . . . . . . . . . . . . . . . . . 1 . . . . . . . reboot_system 2 | . . . . . . . . . . . 1 . . . . . . . . . . . . . . . . 1 . . . overwrite_iff 13 | . . . . . . . . . . 3 . . . . . . . . 3 . . 1 . 1 1 . . 1 . 2 1 streamctrl_low 1 | . . . . . . . . . . . . . . . . . . . . . . 1 . . . . . . . . . streamctrl_high 1 | . . . . . . . . 1 . . . . . . . . . . . . . . . . . . . . . . . formatsys_low 4 | . . . . . . . . . . . 1 . . . . . . . . 1 . 1 . . . . . 1 . . . formatsys_high 20 | . . . . . . . . 3 . 3 2 . 1 . . . . . . . . . . 4 5 . . 1 . 1 . Relay Couplers Released 49 | . . . . . . . . 13 . 6 . 5 . . . . . . . . 9 . . . 16 . . . . . . Machine Destruction 49 | . . . . . . . . 13 . 6 . 5 . . . . . . . . 9 . . . 16 . . . . . . Attached 25 | . . . . . . . . 4 . 2 2 1 1 . . . . . 1 1 1 . . 3 5 . . 2 . 1 1 Merged Code Value 75 | . . . . . . . . . . . . 7 . . . . . . . . 34 . . . 25 9 . . . . . Fabnet Peak Effective % . | . . . . . . . . . . . . . . . . . . . . . . . . . . . . . . . . Robots Rewired 21 | . . . . . . . . 2 . . . . . . . 19 . . . . . . . . . . . . . . . Allies Hacked . | . . . . . . . . . . . . . . . . . . . . . . . . . . . . . . . . Hacks Repelled . | . . . . . . . . . . . . . . . . . . . . . . . . . . . . . . . . Allies | -11 -10 -10 -9 -9 -9 -8 -8 -8 -7 -7 -7 -7 -6 -6 -6 -6 -6 -6 -6 -5 -5 -4 -4 -4 -4 -3 -3 -3 -2 -1 -1 -------- Run | Yrd Mat Min Mat Min Exi Min Mat Gar Fac Gar Fac Gar Fac Was Fac Ext Cet Arc Hub Fac Gar Fac Was Fac Gar Res Qua Sec Res Acc Com Total Allies 86 | . . 2 . . . . . 6 . 7 3 . 1 1 . 25 5 . 5 1 . 2 . 6 7 . . 6 . 7 2 Largest Group 12 | . . 2 . . . . . 3 1 2 2 2 1 2 . 12 10 6 5 1 . 1 . 4 4 1 1 2 . 2 1 Highest-Rated Group 637 | . . 38 . . . . . 70 15 157 46 46 32 59 . 404 637 610 473 23 . 23 . 188 210 64 64 112 . 366 58 Highest-Rated Ally 183 | . . 31 . . . . . 39 15 95 40 32 32 31 . 159 159 137 96 23 . 23 . 56 64 64 64 56 . 183 58 Total Orders 21 | . . . . . . . . 2 . . 1 4 . . . . . 2 3 2 . 2 . . . 2 2 1 . . . STAY 6 | . . . . . . . . 1 . . . 1 . . . . . 1 2 1 . . . . . . . . . . . FOLLOW 3 | . . . . . . . . 1 . . . . . . . . . 1 1 . . . . . . . . . . . . AID 8 | . . . . . . . . . . . 1 3 . . . . . . . 1 . 2 . . . . . 1 . . . EXPLORE 3 | . . . . . . . . . . . . . . . . . . . . . . . . . . 1 2 . . . . RETURN 1 | . . . . . . . . . . . . . . . . . . . . . . . . . . 1 . . . . . Ally Attacks 645 | . . 13 . . . . . 41 . 29 1 7 23 56 . 117 56 19 140 . . 1 . 47 46 . . 15 . 30 4 Total Damage 18533 | . . 234 . . . . . 545 . 833 107 215 599 1841 . 2269 1420 744 4560 . . 16 . 1344 1969 . . 453 . 1254 130 Kills 104 | . . 2 . . . . . 10 . 4 1 2 6 1 . 16 8 3 30 . . . . 5 8 . . 2 . 6 . Allies Corrupted 2 | . . . . . . . . . . . . . . 1 . . . . 1 . . . . . . . . . . . . Allies Melted . | . . . . . . . . . . . . . . . . . . . . . . . . . . . . . . . . Field Lobotomies 3 | . . . . . . . . . . . . . . . . . . . 1 . . . . . . . . . . 2 . Intel | -11 -10 -10 -9 -9 -9 -8 -8 -8 -7 -7 -7 -7 -6 -6 -6 -6 -6 -6 -6 -5 -5 -4 -4 -4 -4 -3 -3 -3 -2 -1 -1 ------- Run | Yrd Mat Min Mat Min Exi Min Mat Gar Fac Gar Fac Gar Fac Was Fac Ext Cet Arc Hub Fac Gar Fac Was Fac Gar Res Qua Sec Res Acc Com Active Infowar (turns) 4215 | 35 528 1171 635 58 . . . . . 1 2 . . . . . . . . . . 182 269 607 . 1 33 245 176 272 . Optics 4 | . . . . . . . . . . . 2 . . . . . . . . . . . . . . . . 2 . . . Sensors 725 | . . . . . . . . . . . . . . . . . . . . . . . . . . 1 33 243 176 272 . Seismic 3294 | 35 528 1171 444 58 . . . . . . . . . . . . . . . . . 182 269 607 . . . . . . . T.N.C. 191 | . . . 191 . . . . . . . . . . . . . . . . . . . . . . . . . . . . Spoofing 1 | . . . . . . . . . . 1 . . . . . . . . . . . . . . . . . . . . . Robot Analysis Total . | . . . . . . . . . . . . . . . . . . . . . . . . . . . . . . . . Derelict Logs Recovered 3 | . . 2 . 1 . . . . . . . . . . . . . . . . . . . . . . . . . . . Drone Launches 4 | . . . . . . . . . . . . . . . . . . . . . . . . . . 2 2 . . . . Drone Recoveries 4 | . . . . . . . . . . . . . . . . . . . . . . . . . . 2 2 . . . . Exploration | -11 -10 -10 -9 -9 -9 -8 -8 -8 -7 -7 -7 -7 -6 -6 -6 -6 -6 -6 -6 -5 -5 -4 -4 -4 -4 -3 -3 -3 -2 -1 -1 ------------- Run | Yrd Mat Min Mat Min Exi Min Mat Gar Fac Gar Fac Gar Fac Was Fac Ext Cet Arc Hub Fac Gar Fac Was Fac Gar Res Qua Sec Res Acc Com Turns Passed 30416 | 114 528 1175 1501 219 906 1174 297 1494 415 1590 1365 1152 1070 396 810 1722 396 943 1664 632 1746 369 269 941 1379 800 1061 2019 225 1357 687 Spaces Moved 14610 | 58 271 679 727 101 551 626 143 697 239 752 706 530 364 174 364 766 168 398 707 307 885 185 156 410 727 438 484 865 143 625 364 Core 20 | 10 . . . . . . . . . . . . . . . . . 5 . . . . . . . . . . . . 5 Treads 14017 | 48 271 679 727 101 551 626 143 697 1 591 706 530 271 143 364 766 168 393 707 307 885 185 156 410 727 438 484 852 143 615 332 Legs . | . . . . . . . . . . . . . . . . . . . . . . . . . . . . . . . . Wheels 523 | . . . . . . . . . 238 161 . . 93 31 . . . . . . . . . . . . . . . . . Hover . | . . . . . . . . . . . . . . . . . . . . . . . . . . . . . . . . Flight . | . . . . . . . . . . . . . . . . . . . . . . . . . . . . . . . . Fastest Speed 50 | 50 160 160 160 160 160 160 160 160 160 160 160 160 170 160 160 160 160 160 160 160 145 150 150 145 145 155 155 146 146 143 50 Average Speed 162 | 141 160 160 160 160 160 160 164 166 160 172 160 169 235 198 162 160 160 190 163 176 149 150 150 149 154 155 155 150 146 148 153 Slowest Speed 2300 | 160 160 160 160 160 160 160 240 240 240 240 160 243 323 240 163 163 160 2300 240 240 160 150 150 152 225 155 166 245 146 215 170 Overloaded Moves . | . . . . . . . . . . . . . . . . . . . . . . . . . . . . . . . . Propulsion Burnouts . | . . . . . . . . . . . . . . . . . . . . . . . . . . . . . . . . Robots Hopped . | . . . . . . . . . . . . . . . . . . . . . . . . . . . . . . . . Potential Cave-ins 1 | . . . . . . . . . . . . . . . . . . . . . . . . . . . . . . . 1 Cave-ins Triggered . | . . . . . . . . . . . . . . . . . . . . . . . . . . . . . . . . Teleports 83 | . . . . . . . . . . . . . . . . . . . . . . . . . . . . 26 5 35 17 Spacefolds 16 | . . . . . . . . . . . . . . . . . . . . . . . . . . . . 4 . 3 9 Exploration Rate (%) 48 | 4 37 96 56 19 71 92 18 71 10 91 22 57 10 85 9 84 66 89 67 7 84 8 93 15 89 29 62 52 3 24 21 Regions Visited 31 Branch Regions 11 Pre-discovered Areas 9 | . 2 1 4 1 1 . . . . . . . . . . . . . . . . . . . . . . . . . . Known Exits Taken 9 | . . . . . . 1 1 . 1 . 1 . . . 1 . . . . 1 . . . 1 . . . . 1 1 . Unknown Exits Taken 13 | 1 1 1 1 1 1 . . . . . . . . . . 1 1 1 1 . . . . . . 1 1 1 . . . Scrap Searched 2 | . . 1 . . . 1 . . . . . . . . . . . . . . . . . . . . . . . . . Spaces Dug 54 | . . . . . . . . . . . 3 . . . 1 12 . . 5 . . 7 . 1 . 2 3 12 . 4 4 Terrain Destroyed 977 | . . . 52 . . . . . 1 1 141 2 66 1 23 32 7 14 86 13 47 16 3 95 14 12 57 119 2 139 34 Melee . | . . . . . . . . . . . . . . . . . . . . . . . . . . . . . . . . Projectile 532 | . . . . . . . . . 1 1 21 2 26 1 23 20 7 14 73 2 43 16 3 24 12 12 31 83 2 81 34 AOE 445 | . . . 52 . . . . . . . 120 . 40 . . 12 . . 13 11 4 . . 71 2 . 26 36 . 58 . Terrain Rammed . | . . . . . . . . . . . . . . . . . . . . . . . . . . . . . . . . Walls Destroyed . | . . . . . . . . . . . . . . . . . . . . . . . . . . . . . . . . Machines Disabled . | . . . . . . . . . . . . . . . . . . . . . . . . . . . . . . . . Actions | -11 -10 -10 -9 -9 -9 -8 -8 -8 -7 -7 -7 -7 -6 -6 -6 -6 -6 -6 -6 -5 -5 -4 -4 -4 -4 -3 -3 -3 -2 -1 -1 --------- Run | Yrd Mat Min Mat Min Exi Min Mat Gar Fac Gar Fac Gar Fac Was Fac Ext Cet Arc Hub Fac Gar Fac Was Fac Gar Res Qua Sec Res Acc Com Total 18837 | 78 322 724 942 150 577 718 180 909 262 913 858 672 476 216 527 1134 251 530 972 361 1166 253 175 615 884 526 720 1279 154 857 436 Wait 1188 | 4 8 11 77 45 18 46 11 62 11 12 46 41 15 2 90 103 29 55 59 14 49 21 1 70 8 23 89 67 2 83 16 Move 14549 | 57 270 678 726 100 550 625 142 696 238 751 706 529 364 173 363 765 167 397 706 307 884 185 155 410 726 437 483 855 142 617 345 Hop . | . . . . . . . . . . . . . . . . . . . . . . . . . . . . . . . . Pick Up 262 | 4 8 2 13 . 3 1 1 13 3 9 12 12 12 2 6 1 5 4 11 5 25 4 . 7 24 7 13 41 2 7 5 Fast Attach 212 | 7 2 2 10 . . . 14 4 . 5 4 6 3 4 12 9 7 6 11 1 17 1 . 3 12 14 24 24 1 6 3 Attach 125 | . . . 3 . 1 . 2 6 1 9 3 3 2 1 7 . . 5 10 5 7 2 . 9 2 1 8 26 1 4 7 Detach 26 | . 1 . . . . . . 2 . 2 . . . 2 3 . . 2 3 1 . . . 2 1 . 2 5 . . . Swap 323 | . 3 1 17 1 2 2 1 15 3 13 14 4 24 6 3 14 7 . 22 5 11 5 3 13 21 4 5 50 2 38 14 Drop 387 | 1 6 5 21 . 3 2 1 21 1 12 18 8 8 12 16 13 14 10 16 3 32 4 . 7 25 21 38 49 1 8 11 Fire 1483 | 5 23 22 69 4 . 40 8 77 4 86 54 68 48 14 27 48 14 51 119 18 139 26 16 89 65 19 57 143 3 93 34 Melee 28 | . . . . . . . . 8 . . . . . . . . . . . . . . . . . . 1 19 . . . Ram 1 | . . . . . . . . . 1 . . . . . . . . . . . . . . . . . . . . . . Kick . | . . . . . . . . . . . . . . . . . . . . . . . . . . . . . . . . Crush 45 | . 1 3 6 . . 2 . . . . 1 1 . . . 4 . . 11 2 2 5 . 5 . . . . . 1 1 Escape Stasis 18 | . . . . . . . . 4 . 14 . . . . . . . . . . . . . . . . . . . . . Rewire 171 | . . . . . . . . 1 . . . . . . . 169 . . 1 . . . . . . . . . . . . Trap . | . . . . . . . . . . . . . . . . . . . . . . . . . . . . . . . . Miscellaneous 19 | . . . . . . . . . . . . . . . . 8 8 . 3 . . . . . . . . . . . . Route ------- -11/Scrapyard -10/Materials (discovered 2 exits: *Min / [*Sub]) -10/Mines (discovered 2 exits: *Mat x2) -9/Materials (discovered 4 exits: *Mat x3 / [*Min]) -9/Mines -9/Exiles (discovered 2 exits: [*Min x2]) -8/Mines -8/Materials -8/Garrison (discovered 2 exits: *Fac x2) -7/Factory (discovered 3 exits: Sto / [*Low] / Gar) -7/Garrison (discovered 3 exits: *Fac x3) -7/Factory -7/Garrison (discovered 2 exits: *Fac x2) -6/Factory (discovered 4 exits: Low x2 / Ext x2) -6/Waste -6/Factory -6/Extension (discovered 2 exits: *Fac / *Cet) -6/Cetus (discovered 2 exits: *Fac / *Arc) -6/Archives (discovered 3 exits: *Fac / *Hub x2) -6/Hub_04(d) (discovered 5 exits: *Fac x4 / Gar) -5/Factory -5/Garrison (discovered 3 exits: *Fac x3) -4/Factory -4/Waste -4/Factory -4/Garrison (discovered 3 exits: *Res x3) -3/Research (discovered 3 exits: [*Res x2] / *Qua) -3/Quarantine (discovered 3 exits: [*Res] / *Sec / [*Frg]) -3/Section 7 -2/Research -1/Access -1/Command To Epsilon Eridani History --------- Turn | Location | Event 5 | -11/Scrapyard | Discovered new exit (range 16) 115 | -11/Scrapyard | Entered Materials 152 | -10/Materials | Discovered new exit (range 16) 334 | -10/Materials | Build established: Mutant 529 | -10/Materials | Discovered new exit (range 6) 643 | -10/Materials | Entered Mines 807 | -10/Mines | Learned location of Zion (-7) 1014 | -10/Mines | Discovered new exit (range 11) 1154 | -10/Mines | Learned Materials terminal intel 1227 | -10/Mines | Discovered new exit (range 7) 1582 | -10/Mines | Found the Drone Emporium 1590 | -10/Mines | Found Prototype Device 1590 | -10/Mines | Identified Thief Drone Bay 1818 | -10/Mines | Entered Materials 1818 | -9/Materials | Evolved 2 slots: Propulsion x1, Utility x1 1819 | -9/Materials | Loaded intel: 12 terminal locations 2191 | -9/Materials | Discovered new exit (range 13) 2249 | -9/Materials | Build established: Scavenger-Mutant 2344 | -9/Materials | Discovered new exit (range 14) 2737 | -9/Materials | Build established: Mutant 3012 | -9/Materials | Identified exit to Materials 3052 | -9/Materials | Repaired Lgt. Treads 3121 | -9/Materials | Learned Storage emergency access door positions 3156 | -9/Materials | Learned location of Recycling (-7) 3177 | -9/Materials | Learned Recycling recycling unit intel 3319 | -9/Materials | Entered Mines 3324 | -9/Mines | Met a Derelict bent on vengeance 3382 | -9/Mines | Assembled infested the area 3387 | -9/Mines | Assisted by a Guerilla fighting off Assembled 3388 | -9/Mines | Deemed a non-threat by the Exiles lab entrance 3388 | -9/Mines | Discovered new exit (range 5) 3538 | -9/Mines | Entered Exiles 3559 | -9/Exiles | Discovered new exit (range 15) 3581 | -9/Exiles | Met 8R-AWN 3607 | -9/Exiles | Met EX-HEX 3706 | -9/Exiles | Met EX-DEC 3792 | -9/Exiles | Discovered new exit (range 14) 3894 | -9/Exiles | Met EX-BIN 4219 | -9/Exiles | Aligned with FarCom system 4221 | -9/Exiles | Given EX-Vault access code 4261 | -9/Exiles | Opened EX-Vault 4269 | -9/Exiles | Found Field Lobotomy Kit 4274 | -9/Exiles | Found Superbattery 4310 | -9/Exiles | Warned to stay clear of 0b10 Research branches 4444 | -9/Exiles | Stole two prototypes: Superbattery, Field Lobotomy Kit 4444 | -9/Exiles | Entered Mines 4868 | -8/Mines | Core integrity fell below 50% 5498 | -8/Mines | Discovered exit to Materials (range 9) 5618 | -8/Mines | Entered Materials 5618 | -8/Materials | Evolved 2 slots: Utility x1, Weapon x1 5913 | -8/Materials | Identified exit to Garrison 5915 | -8/Materials | Entered Garrison 5936 | -8/Garrison | Installed Relay Interface Framework 6010 | -8/Garrison | Build established: Scavenger-Skirmisher 6081 | -8/Garrison | Triggered checkpoint 6193 | -8/Garrison | Garrison Relay disabled 6455 | -8/Garrison | Triggered checkpoint 6461 | -8/Garrison | Triggered checkpoint 6540 | -8/Garrison | Build established: Scavenger-Mutant 6599 | -8/Garrison | Triggered checkpoint 6780 | -8/Garrison | Garrison Relay disabled 6799 | -8/Garrison | Garrison Relay disabled 6849 | -8/Garrison | Discovered new exit (range 3) 6991 | -8/Garrison | Expanded RIF knowledge: Patrol Navigation 7089 | -8/Garrison | Build established: Scavenger-Skirmisher 7283 | -8/Garrison | Triggered checkpoint 7333 | -8/Garrison | Garrison Relay disabled 7386 | -8/Garrison | Discovered new exit (range 11) 7400 | -8/Garrison | Build established: Skirmisher 7409 | -8/Garrison | Entered Factory 7409 | -7/Factory | Accompanied by 1 ally 7409 | -7/Factory | Evolved 2 slots: Utility x2 7410 | -7/Factory | Identified exit to Storage 7411 | -7/Factory | FarCom data flow suspended 7708 | -7/Factory | Build established: Tank 7797 | -7/Factory | Discovered new exit (range 12) 7822 | -7/Factory | Identified exit to Garrison 7824 | -7/Factory | Entered Garrison 7862 | -7/Garrison | Triggered checkpoint 7895 | -7/Garrison | Garrison Relay disabled 7974 | -7/Garrison | Expanded RIF knowledge: Coupler Efficiency 8138 | -7/Garrison | Triggered checkpoint 8139 | -7/Garrison | Triggered checkpoint 8235 | -7/Garrison | Lost 3 parts (1p1n1u) 8268 | -7/Garrison | Discovered new exit (range 12) 8288 | -7/Garrison | Triggered checkpoint 8363 | -7/Garrison | Garrison Relay disabled 8842 | -7/Garrison | Found embedded Infiltrators 8926 | -7/Garrison | Build established: Bothacker-Mutant 8950 | -7/Garrison | Discovered new exit (range 10) 9022 | -7/Garrison | Triggered checkpoint 9188 | -7/Garrison | Triggered checkpoint 9341 | -7/Garrison | Discovered new exit (range 5) 9414 | -7/Garrison | Entered Factory 9628 | -7/Factory | Found Powered Armor 9814 | -7/Factory | First assault squad dispatched 9901 | -7/Factory | Build established: Bothacker-Gunner 10153 | -7/Factory | P-60 Hacker assimilated allied Angel 4a 10375 | -7/Factory | System corruption reached 10% 10709 | -7/Factory | Build established: Gunner 10748 | -7/Factory | Found Powered Armor 10758 | -7/Factory | Found Powered Armor 10779 | -7/Factory | Identified exit to Garrison 10779 | -7/Factory | Entered Garrison 10779 | -7/Garrison | Accompanied by 2 allies 10809 | -7/Garrison | Triggered checkpoint 11010 | -7/Garrison | Triggered checkpoint 11013 | -7/Garrison | Triggered checkpoint 11083 | -7/Garrison | Destroyed 10 combat bots 11135 | -7/Garrison | Discovered new exit (range 10) 11205 | -7/Garrison | Expanded RIF knowledge: Command Fork 11323 | -7/Garrison | Triggered checkpoint 11611 | -7/Garrison | Discovered new exit (range 13) 11691 | -7/Garrison | Triggered checkpoint 11722 | -7/Garrison | Expanded RIF knowledge: Code Merge 11738 | -7/Garrison | Garrison Relay disabled 11931 | -7/Garrison | Entered Factory 11931 | -6/Factory | Evolved 2 slots: Propulsion x2 12028 | -6/Factory | Build established: Bothacker-Gunner 12275 | -6/Factory | Identified exit to Lower Caves 12275 | -6/Factory | Identified exit to Extension 12807 | -6/Factory | Repaired Powered Armor 13001 | -6/Factory | Sucked down chute 13001 | -6/Factory | Entered Waste 13002 | -6/Waste | Met a frightened Derelict 13016 | -6/Waste | EMP discharged 13021 | -6/Waste | 1 allies followed down the chute 13044 | -6/Waste | Spotted C-40 Crusher 13044 | -6/Waste | Spotted C-40 Crusher 13055 | -6/Waste | Destroyed C-40 Crusher 13064 | -6/Waste | Spotted C-40 Crusher 13102 | -6/Waste | Allies destroyed C-40 Crusher 13116 | -6/Waste | EMP discharged 13116 | -6/Waste | System corruption reached 10% 13121 | -6/Waste | Spotted C-40 Crusher 13125 | -6/Waste | Found Damper Plating 13156 | -6/Waste | Spotted C-40 Crusher 13211 | -6/Waste | Spotted C-40 Crusher 13216 | -6/Waste | EMP discharged 13316 | -6/Waste | EMP discharged 13334 | -6/Waste | Discovered new exit (range 16) 13355 | -6/Waste | Build established: Bothacker-Tank 13397 | -6/Waste | Entered Factory 13711 | -6/Factory | Build established: Tank 13739 | -6/Factory | Discovered exit to Extension (range 11) 14207 | -6/Factory | Entered Extension 14649 | -6/Extension | Rescued a captive Derelict 14659 | -6/Extension | Rescued a captive Derelict 14715 | -6/Extension | Lost 5 allies 14861 | -6/Extension | Build established: Scavenger-Tank 14943 | -6/Extension | Rescued a captive Derelict 15222 | -6/Extension | Build established: Commander-Tank 15308 | -6/Extension | Spotted B-75 Beast 15325 | -6/Extension | Destroyed B-75 Beast 15339 | -6/Extension | Spotted B-75 Beast 15355 | -6/Extension | Destroyed B-75 Beast 15383 | -6/Extension | Lost 9 allies 15474 | -6/Extension | Found Hvy. Insulated Plating 15501 | -6/Extension | Rescued A7 15579 | -6/Extension | Rescued a captive Derelict 15620 | -6/Extension | Build established: Scavenger-Tank 15684 | -6/Extension | Rescued a captive Derelict 15889 | -6/Extension | Discovered new exit (range 10) 15891 | -6/Extension | Discovered new exit (range 6) 15929 | -6/Extension | Entered Cetus 15929 | -6/Cetus | Accompanied by 10 allies (A7) 15934 | -6/Cetus | Acquired a Cetus Manufacturing Module code from A7 15956 | -6/Cetus | Spotted Cetus Guard 15956 | -6/Cetus | Spotted Cetus Guard 15958 | -6/Cetus | Spotted Cetus Guard 15959 | -6/Cetus | Spotted Cetus Guard 15979 | -6/Cetus | Allies destroyed Cetus Guard 15979 | -6/Cetus | Allies destroyed Cetus Guard 15980 | -6/Cetus | Destroyed Cetus Guard 15982 | -6/Cetus | Allies destroyed Cetus Guard 16013 | -6/Cetus | Lost 5 allies 16087 | -6/Cetus | Started Cetus Manufacturing Module 16112 | -6/Cetus | Manufactured an Enhanced Grunt 16123 | -6/Cetus | Escorted A7 to Cetus Mainframe 16137 | -6/Cetus | Manufactured an Enhanced Grunt 16146 | -6/Cetus | Discovered new exit (range 15) 16162 | -6/Cetus | Manufactured an Enhanced Grunt 16187 | -6/Cetus | Manufactured an Enhanced Grunt 16192 | -6/Cetus | Spotted Cetus Guard 16192 | -6/Cetus | Spotted Cetus Guard 16196 | -6/Cetus | Spotted Cetus Guard 16197 | -6/Cetus | Spotted Cetus Guard 16209 | -6/Cetus | Allies destroyed Cetus Guard 16212 | -6/Cetus | Manufactured an Enhanced Grunt 16214 | -6/Cetus | Allies destroyed Cetus Guard 16219 | -6/Cetus | Allies destroyed Cetus Guard 16221 | -6/Cetus | Allies destroyed Cetus Guard 16226 | -6/Cetus | Discovered new exit (range 15) 16245 | -6/Cetus | Met Revision 17 16248 | -6/Cetus | Lost 4 allies 16325 | -6/Cetus | Entered Archives 16325 | -6/Archives | Accompanied by 6 allies (A7) 16330 | -6/Archives | Received a hacking code to weaken MAIN.C 16402 | -6/Archives | Unable to access archive contents 16402 | -6/Archives | Unable to access archive contents 16408 | -6/Archives | Discovered new exit (range 15) 16470 | -6/Archives | Discovered new exit (range 16) 16759 | -6/Archives | Discovered new exit (range 15) 17268 | -6/Archives | Entered Hub_04(d) 17268 | -6/Hub_04(d) | Accompanied by 5 allies 17410 | -6/Hub_04(d) | Garrison activated, responded to threat 17438 | -6/Hub_04(d) | Discovered new exit (range 16) 17650 | -6/Hub_04(d) | Identified exit to Garrison 17744 | -6/Hub_04(d) | Spotted B-75 Beast 17750 | -6/Hub_04(d) | Assimilated B-75 Beast with FLK Orb 17962 | -6/Hub_04(d) | Discovered new exit (range 11) 17989 | -6/Hub_04(d) | Garrison activated, responded to threat 18030 | -6/Hub_04(d) | Lost 4 parts (1n3u) 18134 | -6/Hub_04(d) | Discovered new exit (range 6) 18171 | -6/Hub_04(d) | Core integrity fell below 50% 18283 | -6/Hub_04(d) | Discovered new exit (range 15) 18318 | -6/Hub_04(d) | First assault squad dispatched 18443 | -6/Hub_04(d) | Lost 3 parts (2n1w) 18452 | -6/Hub_04(d) | Destroyed 7 combat bots 18737 | -6/Hub_04(d) | Network Hub disabled 18762 | -6/Hub_04(d) | Spotted Lightning 18762 | -6/Hub_04(d) | Spotted Lightning 18798 | -6/Hub_04(d) | Spotted Lightning 18798 | -6/Hub_04(d) | Spotted Lightning 18801 | -6/Hub_04(d) | Spotted Lightning 18805 | -6/Hub_04(d) | Core integrity fell below 20% 18821 | -6/Hub_04(d) | Allies destroyed Lightning 18823 | -6/Hub_04(d) | Destroyed Lightning 18834 | -6/Hub_04(d) | Allies destroyed Lightning 18846 | -6/Hub_04(d) | Found Prototype Device 18846 | -6/Hub_04(d) | Identified Exp. EM Shield 18854 | -6/Hub_04(d) | Found Prototype Processor 18860 | -6/Hub_04(d) | Found Prototype Device 18860 | -6/Hub_04(d) | Identified Exp. Phase Shifter 18882 | -6/Hub_04(d) | Found Prototype Processor 18932 | -6/Hub_04(d) | Entered Factory 18932 | -5/Factory | Evolved 2 slots: Utility x2 19146 | -5/Factory | Repaired Broken Centrium Heavy Treads? 19149 | -5/Factory | Build established: Scavenger-Mutant 19232 | -5/Factory | First assault squad dispatched 19564 | -5/Factory | Identified exit to Garrison 19564 | -5/Factory | Entered Garrison 19565 | -5/Garrison | Identified Exp. Targeting Computer (x2) 19584 | -5/Garrison | Triggered checkpoint 19685 | -5/Garrison | Build established: Scavenger-Tank 19778 | -5/Garrison | Triggered checkpoint 19807 | -5/Garrison | Garrison Relay disabled 19888 | -5/Garrison | Spotted B-75 Beast 19943 | -5/Garrison | Destroyed B-75 Beast 20099 | -5/Garrison | Spotted B-75 Beast 20115 | -5/Garrison | Build established: Bothacker-Tank 20133 | -5/Garrison | Destroyed B-75 Beast 20180 | -5/Garrison | Triggered checkpoint 20184 | -5/Garrison | Triggered checkpoint 20317 | -5/Garrison | Discovered new exit (range 14) 20390 | -5/Garrison | Triggered checkpoint 20447 | -5/Garrison | System corruption reached 10% 20523 | -5/Garrison | Garrison Relay disabled 20714 | -5/Garrison | Destroyed 8 combat bots 20772 | -5/Garrison | Expanded RIF knowledge: Structural Interface 20828 | -5/Garrison | Build established: Botlord-Tank 20880 | -5/Garrison | Discovered new exit (range 12) 21126 | -5/Garrison | Triggered checkpoint 21254 | -5/Garrison | Triggered checkpoint 21290 | -5/Garrison | Discovered new exit (range 12) 21310 | -5/Garrison | Entered Factory 21310 | -4/Factory | Evolved 2 slots: Power x1, Propulsion x1 21560 | -4/Factory | First assault squad dispatched 21679 | -4/Factory | Sucked down chute 21679 | -4/Factory | Entered Waste 21689 | -4/Waste | Spotted C-40 Crusher 21694 | -4/Waste | EMP discharged 21694 | -4/Waste | Spotted C-40 Crusher 21695 | -4/Waste | Spotted C-40 Crusher 21724 | -4/Waste | Spotted C-40 Crusher 21764 | -4/Waste | Spotted C-40 Crusher 21769 | -4/Waste | Spotted C-40 Crusher 21782 | -4/Waste | Destroyed C-40 Crusher 21794 | -4/Waste | EMP discharged 21827 | -4/Waste | Destroyed C-40 Crusher 21894 | -4/Waste | EMP discharged 21898 | -4/Waste | Discovered new exit (range 13) 21948 | -4/Waste | Entered Factory 22052 | -4/Factory | Repaired Centrium Medium Armor Plating 22643 | -4/Factory | Lost 3 allies 22698 | -4/Factory | First assault squad dispatched 22889 | -4/Factory | Identified exit to Garrison 22889 | -4/Factory | Entered Garrison 22915 | -4/Garrison | Triggered checkpoint 22955 | -4/Garrison | Build established: Bothacker-Tank 22971 | -4/Garrison | Garrison Relay disabled 23103 | -4/Garrison | Lost 4 parts (1p1n2u) 23198 | -4/Garrison | Spotted B-86 Titan 23218 | -4/Garrison | Destroyed B-86 Titan 23243 | -4/Garrison | Triggered checkpoint 23269 | -4/Garrison | Build established: Botlord-Tank 23321 | -4/Garrison | Discovered new exit (range 3) 23351 | -4/Garrison | Triggered checkpoint 23386 | -4/Garrison | Garrison Relay disabled 23457 | -4/Garrison | Triggered checkpoint 23572 | -4/Garrison | Discovered new exit (range 13) 23583 | -4/Garrison | Triggered checkpoint 23650 | -4/Garrison | Garrison Relay disabled 23652 | -4/Garrison | Garrison Relay disabled 23815 | -4/Garrison | Triggered checkpoint 23962 | -4/Garrison | Expanded RIF knowledge: Autooverride 24023 | -4/Garrison | Spotted B-86 Titan 24131 | -4/Garrison | Discovered new exit (range 15) 24268 | -4/Garrison | Entered Research 24268 | -3/Research | Accompanied by 1 ally 24268 | -3/Research | Evolved 2 slots: Utility x2 24385 | -3/Research | Found Gamma Bomb Array 24446 | -3/Research | Discovered new exit (range 7) 24468 | -3/Research | Revision forces began assault on 0b10 24487 | -3/Research | Met up with Revision 17++ 24704 | -3/Research | Found Fusion Bomb Launcher 24862 | -3/Research | Discovered new exit (range 14) 24968 | -3/Research | Research terminal network offline 24980 | -3/Research | Spotted B-90 Cyclops 24997 | -3/Research | Discovered new exit (range 16) 25068 | -3/Research | Entered Quarantine 25068 | -3/Quarantine | Accompanied by 1 ally 25101 | -3/Quarantine | Found Alien Artifact 25101 | -3/Quarantine | Identified Phase Armor 25137 | -3/Quarantine | Found Alien Artifact 25137 | -3/Quarantine | Identified Phase Redirector 25252 | -3/Quarantine | Found Alien Impact Weapon 25259 | -3/Quarantine | Identified Core Stripper 25363 | -3/Quarantine | Found Alien Artifact 25363 | -3/Quarantine | Identified Terrabomb 25363 | -3/Quarantine | Used Terrabomb 25413 | -3/Quarantine | Spotted Alpha 7 25692 | -3/Quarantine | Discovered new exit (range 13) 25770 | -3/Quarantine | Cryocooling Duct disabled 25785 | -3/Quarantine | Ambient heat levels rising (+20) 25785 | -3/Quarantine | Non-combat units ordered to evacuate 25936 | -3/Quarantine | Spotted Fortress 25942 | -3/Quarantine | Destroyed Fortress 25960 | -3/Quarantine | Found Prototype Device 25960 | -3/Quarantine | Identified Exp. Force Field 25964 | -3/Quarantine | Found Prototype Protection 25964 | -3/Quarantine | Identified Centrium Heavy Armor Plating 25978 | -3/Quarantine | Found Prototype Reactor 25978 | -3/Quarantine | Identified Vortex Chain Reactor 25982 | -3/Quarantine | Found Vortex Chain Reactor 25992 | -3/Quarantine | Found Prototype Device 25992 | -3/Quarantine | Identified Thermal Barrier 26121 | -3/Quarantine | Discovered new exit (range 6) 26121 | -3/Quarantine | Discovered new exit (range 6) 26129 | -3/Quarantine | Entered Section 7 26129 | -3/Section 7 | Spotted S7 Guard 26163 | -3/Section 7 | Found Alien Artifact 26164 | -3/Section 7 | Identified Integrated Thermoelectric Network 26164 | -3/Section 7 | Installed Integrated Thermoelectric Network, gained heat-energy exchange potential 26220 | -3/Section 7 | Destroyed S7 Guard 26291 | -3/Section 7 | Found Prototype Protection 26291 | -3/Section 7 | Identified Hvy. Regenerative Plating 26309 | -3/Section 7 | Spotted B-86 Titan 26324 | -3/Section 7 | Destroyed B-86 Titan 26438 | -3/Section 7 | Spotted S7 Guard 26467 | -3/Section 7 | Destroyed S7 Guard 26499 | -3/Section 7 | Found Hvy. Regenerative Plating 26657 | -3/Section 7 | Found Alien Artifact 26881 | -3/Section 7 | Found Alien Artifact 27050 | -3/Section 7 | Found Alien Artifact 27076 | -3/Section 7 | Identified Core Reset Matrix 27077 | -3/Section 7 | Identified Navigation Efficiency Matrix 27077 | -3/Section 7 | Installed Navigation Efficiency Matrix, process failed with unexpected side effects 27078 | -3/Section 7 | Identified Integrated Reactor 27078 | -3/Section 7 | Installed Integrated Reactor, increased core energy generation (+10) 27100 | -3/Section 7 | Spotted S7 Guard 27187 | -3/Section 7 | Destroyed S7 Guard 27265 | -3/Section 7 | Found Alien Artifact 27265 | -3/Section 7 | Identified Spacefold Activator 27306 | -3/Section 7 | Found Alien Artifact 27307 | -3/Section 7 | Identified Core Membrane 27307 | -3/Section 7 | Installed Core Membrane, gained immunity to corruption 27379 | -3/Section 7 | First assault squad dispatched 27492 | -3/Section 7 | Spotted B-99 Colossus 27553 | -3/Section 7 | Found Alien Artifact 27553 | -3/Section 7 | Identified Integrity Redistributor 27553 | -3/Section 7 | Used Integrity Redistributor, redistributed integrity from core (-370) 27554 | -3/Section 7 | Core integrity fell below 50% 27639 | -3/Section 7 | Found Alien Artifact 27639 | -3/Section 7 | Identified LRC Armor 27639 | -3/Section 7 | Installed LRC Armor, increased core integrity (+250) 27650 | -3/Section 7 | Found Alien Artifact 27650 | -3/Section 7 | Identified LRC Inertial Stabilizer 27650 | -3/Section 7 | Installed LRC Inertial Stabilizer, increased mass support (+10) 27829 | -3/Section 7 | Destroyed B-99 Colossus 27847 | -3/Section 7 | Found Prototype Ballistic Gun 27871 | -3/Section 7 | Spotted Alpha 7 28059 | -3/Section 7 | Scanned by Researcher 28115 | -3/Section 7 | Discovered new exit (range 14) 28148 | -3/Section 7 | Entered Research 28148 | -2/Research | Evolved 2 slots: Power x1, Utility x1 28218 | -2/Research | Build established: Bothacker-Tank 28220 | -2/Research | Discovered new exit (range 9) 28300 | -2/Research | Identified exit to Access 28373 | -2/Research | Entered Access 28373 | -1/Access | Evolved 2 slots: Power x1, Weapon x1 29005 | -1/Access | Intercept squad dispatched 29032 | -1/Access | Spotted Tracker 29033 | -1/Access | Spotted Tracker 29040 | -1/Access | Destroyed Tracker 29195 | -1/Access | Assimilated H-81 Overseer with FLK Orb 29373 | -1/Access | First assault squad dispatched 29417 | -1/Access | Build established: Generator-Tank 29424 | -1/Access | Lost 5 allies 29536 | -1/Access | Assimilated H-81 Overseer with FLK Orb 29704 | -1/Access | Intercept squad dispatched 29716 | -1/Access | Spotted B-99 Colossus 29716 | -1/Access | Spotted B-99 Colossus 29720 | -1/Access | Discovered new exit (range 3) 29721 | -1/Access | Identified exit to Command 29730 | -1/Access | Entered Command 30230 | -1/Command | First assault squad dispatched 30365 | -1/Command | Spotted Striker 30369 | -1/Command | Spotted Alpha 7 30406 | -1/Command | Spotted Executioner 30406 | -1/Command | Spotted Executioner 30406 | -1/Command | Spotted Alpha 7 30406 | -1/Command | Spotted Striker 30406 | -1/Command | Spotted Executioner 30406 | -1/Command | Spotted Executioner 30407 | -1/Command | Core integrity fell below 50% 30407 | -1/Command | Spotted B-99 Colossus 30408 | -1/Command | Spotted B-99 Colossus 30415 | -1/Command | Discovered new exit (range 6) 30417 | *** | Escaped! Last Messages --------------- 30414_ Slug penetrates Wall. 30414_ Spacefolded through Wall. 30415_ Penetrated by Slug. 30415_ Com. Mass Driver destroyed. 30415_ Penetrated by Slug. 30415_ Faulty Exp. Biometal Medium Treads destroyed. 30415_ Slug penetrates B-99 Colossus. 30415_ Penetrated by Slug. 30415_ Slug penetrates Access Shell. 30415_ Slug penetrates B-99 Colossus. 30415_ The Access Shell folds into the floor. 30415_ EXIT=FOUND 30416_ Knocked back. 30416_ Acquired 2 matter. 30417_ Penetrated by Slug. 30417_ Slug penetrates Wall. 30417_ Penetrated by Slug. 30417_ Adv. Heavy Siege Treads destroyed. 30417_ Slug penetrates Striker. 30417_ Slug penetrates Wall. Map ----- +----------------------------------------------------+ | ???????# "" "" ???????????????????? | | ???????# #?????????????????????? | | ???????# % #?????????????????????? | | ???????# !% #?????????????????????? | | ######## % % #?????????????????????? | | % *%* #?????????????????????? | | % # #*####### #?????????????????????? | | ## ##????## #?????????????????????? | | ! ####????###++++##????????????????????? | | !] #???????#" #????????????????????? | | !]]| #???????## #????????????????????? | | ]!!]###???????# #???????????????????? | | """ ]][#?????????##7 ^ ##???????????????????? | | """ ! #?????????# ^ #???????????????????? | | "" ^ #?????????##E 7K ##???????????????????? | | % #?????????# E %E #???????????????????? | | % #?????????## ^^%E;#???????????????????? | | ! #?????????# ^ ##??????????????????? | | " #???????#### ^% #;##?????????????????? | | """" #???????# % BB#?????????????????? | | """ #???????# BB BB#?????????????????? | | " ! #???????# BB #?????????????????? | | ! #???????# K #?????????????????? | | [ = #???????# #?????????????????? | | #???????# "" #?????????????????? | | " [ ###???????# "@ #?????????????????? | | = #?????????# #?????????????????? | | #?????????# #?????????????????? | | # #?????????# #?????????????????? | | ### #?????????# #?????????????????? | | ###/#######???????# #?????????????????? | | #???????##############?????????????????? | | #??????????????????????????????????????? | | #??????????????????????????????????????? | | ""#??????????????????????????????????????? | | ""#??????????????????????????????????????? | | " ""#??????????????????????????????????????? | | """ T#??????????????????????????????????????? | | """" ""#??????????????????????????????????????? | | "" ""#??????????????????????????????????????? | | % ! ""#??????????????????????????????????????? | | #??????????????????????????????????????? | | #??????????????????????????????????????? | | ####+##+#####????????????????????????????????????? | | #??????????????????????????????????? | | #??????????????????????????????????? | | "" "" #??????????????????????????????????? | | """" """" #??????????????????????????????????? | | """" """" #??????????????????????????????????? | | "" "" #??????????????????????????????????? | +----------------------------------------------------+ Best States ------------- Heat Dissipation 174 Energy Generation 101 Energy Capacity 2200 Matter Stores 300 Matter Capacity 400 Sight Range 23 Robot Scan Range 18 Terrain Scan Density 10 EM Shielding 3 Armor Coverage 1825 Resistance: KI 20 Resistance: EM 90 Weapon Cycling 25 Phase Shifting 20 Evasion (%) 60 Targeting Accuracy 16 Core Analysis 6 Recoil Reduction 6 Offensive Hacking 12 Relay Coupler Types 3 Relay Coupler Value 98 Item Schematics ----------------- Huge Storage Unit | -9/Materials | Hacked Coil Gun | -6/Factory | Extracted Hvy. Plasma Cannon | -6/Factory | Extracted Robot Schematics ------------------ None Fabricated ------------ Nothing Repaired ---------- Lgt. Treads | 75% | -9/Materials Powered Armor | 1% | -6/Factory Centrium Heavy Treads | 23% | -5/Factory | Broken Centrium Medium Armor Plating | 17% | -4/Factory Studied --------- None Alien Tech Used ----------------- Phase Armor Phase Redirector Core Stripper Terrabomb Integrated Thermoelectric Network Navigation Efficiency Matrix Integrated Reactor Spacefold Activator Core Membrane Integrity Redistributor LRC Armor LRC Inertial Stabilizer Achievements -------------- Cannon Specialist Coming In Hot Morally Flexible Partsplosion Tailor-made Taming Of The Crushers Well-fed Force Field Challenges ------------ None Game ------ Seed SurgeThermalMultirail Manual? 0 Play Time 05:22:13 Cumulative 637.2 hours Start 2026.01.16 @ 19:45:08 End 2026.01.18 @ 18:49:05 Sessions 10 Manual Loads 0 Difficulty Rogue Special Mode None Game No. 352 Rogue 327 Adventurer 7 Explorer 18 Win Type 0 Total 55 Types 35/1/8/2/2/1/1/3/0/2 Lore% 95 Gallery% 89 Achievement% 68 Wizard Run 0 Options --------- Layout 0 ASCII 0 Keyboard 0 Movement Numpad Keybinds 0 Fullscreen 1 Font 12/Smallcaps Map View 83x54 Zoom Use 0% Tactical HUD 1 Map Filters NONE Filters NONE Steam 1 RUN: 345e5186-ccb8-4017-a1d9-f6690568dc0e